Workbook

Sheet Armée
C3: DATE : | E3: 2013-11-20 | Z3: tableau de calcul perso
C5: Prévision de ponte : (notez si dessous) | E5: pourcentage de votre armée sur 100% JSN (à titre d'indication) | G5: Actuellement j'ai : (notez si dessous) | H5: Je lance une ponte de : (notez si dessous) | N5: dénomination : | P5: TOTAL FINAL APRES PONTE | R5: idéal de ponte (selon i-sork) -Début de serveur- Chasseur : Sur 100% de JSN 80 à 90% de JS 20 à 30% d'ARTI | Z5: calcul perso : | AB5: sur | AC5: soit
C6: 100000 | E6: =100 -> 100 | F6: % | G6: 289694 | H6: 0 | N6: jeunes Soldate naines | P6: =SUM(G6:H6) -> 289694 | Z6: JSN = | AB6: 1 | AC6: =P6 -> 289694
C7: 0 | E7: =P7*100/P6 -> 5.255890698 | F7: % | G7: 15226 | H7: 0 | N7: Soldates Naines | P7: 15226 | Z7: vous devez pondre
C8: 0 | E8: =P8*100/P6 -> 1.172271431 | F8: % | G8: 3396 | H8: 0 | N8: Naines d'Elites | P8: 3396 | Z8: =AC8-Z23 -> 119057.6 | AB8: 0.9 | AC8: =AC6*90/100 -> 260724.6
C9: 103543 | E9: =P9*100/P6 -> 48.90229 | F9: % | G9: 141667 | H9: 0 | N9: Jeunes Soldates | P9: 141667 | Z9: =AC9-Z23 -> 90088.2 | AB9: 0.8 | AC9: =AC6*80/100 -> 231755.2
C10: 0 | E10: =G10*100/P6 -> 4.232396943 | F10: % | G10: 12261 | H10: 0 | N10: Soldates | P10: 12261 | Z10: =AC10-Z23 -> 61118.8 | AB10: 0.7 | AC10: =AC6*70/100 -> 202785.8
C11: 0 | E11: =P11*100/P6 -> 0 | F11: % | G11: 0 | H11: 0 | N11: Concierges | P11: 0 | Z11: =AC11-Z23 -> 32149.4 | AB11: 0.6 | AC11: =AC6*60/100 -> 173816.4
C12: 0 | E12: =P12*100/P6 -> 0 | F12: % | G12: 0 | H12: 0 | N12: Concierges d'élites | P12: 0 | Z12: =AC12-Z23 -> 3180 | AB12: 0.5 | AC12: =AC6*50/100 -> 144847
C13: 58141 | E13: =P13*100/P6 -> 12.74931479 | F13: % | G13: 36934 | H13: 0 | N13: Artilleuses | P13: 36934 | Z13: =AC13-Z23 -> -25789.4 | AB13: 0.4 | AC13: =AC6*40/100 -> 115877.6
C14: 0 | E14: =P14*100/P6 -> 2.678343355 | F14: % | G14: 7759 | H14: 0 | N14: Artilleuses d'élites | P14: 7759 | Z14: =AC14-Z23 -> -54758.8 | AB14: 0.3 | AC14: =AC6*30/100 -> 86908.2
C15: 0 | E15: =P15*100/P6 -> 0.9375409915 | F15: % | G15: 2716 | H15: 0 | N15: Soldates d'élites | P15: =SUM(G15:H15) -> 2716 | Z15: =AC15-Z23 -> -83728.2 | AB15: 0.2 | AC15: =AC6*20/100 -> 57938.8
C16: 0 | E16: =P16*100/P6 -> 0 | F16: % | G16: 0 | H16: 0 | N16: Tanks | P16: 0 | Z16: =AC16-Z23 -> -112697.6 | AB16: 0.1 | AC16: =AC6*10/100 -> 28969.4
C17: 0 | E17: =P17*100/P6 -> 0 | F17: % | G17: 0 | H17: 0 | N17: Tanks d'élites | P17: =SUM(G17:H17) -> 0
C18: 0 | E18: =P18*100/P6 -> 0 | F18: % | G18: 0 | H18: 0 | N18: Tueuses | P18: 0
C19: 0 | E19: =P19*100/P6 -> 0 | F19: % | G19: 0 | H19: 0 | N19: Tueuses d'élites | P19: 0 | Z19: Selectionnez dans la liste déroulante du dessous le type de fourmis que vous souhaitez créer
Z21: Jeunes Soldates | AD21: <=
AD22: <=
C23: mon ancienne armée sauvegarde | G23: FDF brut | I23: bonus AR | L23: ARME NIVEAU (notez si dessous) | P23: TOTAL DE FDF | R23: diff : fdf/vie | U23: diff : fdf/def | Z23: =IF(Z21="","",VLOOKUP(Z21,N6:P19,3,0)) -> 141667
C24: 162315 | D24: jeunes Soldate naines | G24: =(P6*3)+(P7*5)+(P8*7)+(P9*10)+(P10*15)+(P11*1)+(P12*1)+(P13*30)+(P14*35)+(P15*24)+(P16*55)+(P17*80)+(P18*50)+(P19*55) -> 4014338 | I24: (+ | J24: =P24-G24 -> 4817205.6 | K24: ) | L24: 12 | P24: =G24*(10+L24)/10 -> 8831543.6 | R24: =((P24-P27)/P27)*100 -> -20.60294892 | S24: % | U24: =((P24-P30)/P30)*100 -> 40.19162099 | V24: %
C25: 40074 | D25: Soldates Naines
C26: 8467 | D26: Naines d'Elites | G26: VIE brut | I26: bonus BOU | L26: BOUCLIER NIVEAU (notez si dessous) | P26: TOTAL DE VIE en attaque | R26: diff : vie/fdf | U26: diff : vie/def
C27: 106309 | D27: Jeunes Soldates | G27: =(P6*8)+(P7*10)+(P8*13)+(P9*16)+(P10*20)+(P11*30)+(P12*40)+(P13*10)+(P14*12)+(P15*27)+(P16*35)+(P17*50)+(P18*50)+(P19*55) -> 5561632 | I27: (+ | J27: =P27-G27 -> 5561632 | K27: ) | L27: 10 | P27: =G27*(10+L27)/10 -> 11123264 | R27: =((P27-P24)/P24)*100 -> 25.94926214 | S27: % | U27: =((P27-P30)/P30)*100 -> 76.57031222 | V27: %
C28: 20054 | D28: Soldates
C29: 0 | D29: Concierges | G29: DEFENSE brut | I29: bonus AR | L29: EXE | P29: TOTAL DEFENSE | R29: diff : def/fdf | U29: diff : def/ vie
C30: 0 | D30: Concierges d'élites | G30: =(P6*2)+(P7*4)+(P8*6)+(P9*9)+(P10*14)+(P11*25)+(P12*35)+(P13*15)+(P14*18)+(P15*23)+(P16*1)+(P17*1)+(P18*50)+(P19*55) -> 2863465 | I30: (+ | J30: =P30-G30 -> 3436158 | K30: ) | P30: =G30*(10+L24)/10 -> 6299623 | R30: =((P30-P24)/P24)*100 -> -28.66906075 | S30: % | U30: =((P30-P27)/P27)*100 -> -43.36533773 | V30: %
C31: 46785 | D31: Artilleuses
C32: 15582 | D32: Artilleuses d'élites | G32: TOTAL DE FOURMIS | R32: DOME (notez si dessous) | U32: LOGE (notez si dessous)
C33: 5678 | D33: Soldates d'élites | G33: =SUM(P6:P19) -> 509653 | R33: 10 | U33: 11
C34: 0 | D34: Tanks | P34: i-sork 2013
C35: 0 | D35: Tanks d'élites | G35: RESUME (si vous devez envoyer ces informations copiez/collez la zone blanche et envoyez par mp -ATTENTION REVELER SON ARMEE COMPORTE UN RISQUE restez vigilant-) | R35: Bonus de bouclier | U35: Bonus de bouclier
C36: 0 | D36: Tueuses | Q36: + | R36: =R39-P27 -> 3336979.2 | T36: + | U36: =U39-P27 -> 10845182.4
C37: 0 | D37: Tueuses d'élites
G38: date : | J38: =E3 -> 2013-11-20 | R38: TOTAL DE VIE EN DOME | U38: TOTAL DE VIE EN LOGE
C39: fdf notez ici | D39: vie notez ici | G39: Vous avez actuellement un total de fourmis de : | R39: =G27*(1+0.1*L27+0.1+0.05*R33) -> 14460243.2 | U39: =G27*(1+0.1*L27+0.3+0.15*U33) -> 21968446.4
C40: 0 | D40: 0 | G40: =G33 -> 509653
C41: def notez ici | G41: Vous avez actuellement :
C42: 0 | G42: =R44 -> 421472 | H42: ouvrières | R42: NOMBRE D'OUVRIERES (notez si dessous)
G43: Avec un nombre total de :
R44: 421472
G45: =P6 -> 289694 | H45: jeunes Soldate naines-- | K45: soit | L45: =E6 -> 100 | M45: % | N45: ------- selon le ratio 100% JSN
G46: =P7 -> 15226 | H46: Soldates Naines--------- | K46: soit | L46: =E7 -> 5.255890698 | M46: % | N46: ------- selon le ratio 100% JSN
G47: 3396 | H47: Naines d'Elites---------- | K47: soit | L47: 1.172271431 | M47: % | N47: ------- selon le ratio 100% JSN | R47: VOTRE VA
G48: 141667 | H48: Jeunes Soldates--------- | K48: soit | L48: 48.90229 | M48: % | N48: ------- selon le ratio 100% JSN
G49: 12261 | H49: Soldates------------------ | K49: soit | L49: 4.232396943 | M49: % | N49: ------- selon le ratio 100% JSN | R49: 14
G50: 0 | H50: Concierges--------------- | K50: soit | L50: 0 | M50: % | N50: ------- selon le ratio 100% JSN
G51: 0 | H51: Concierges d'élites----- | K51: soit | L51: 0 | M51: % | N51: ------- selon le ratio 100% JSN
G52: 36934 | H52: Artilleuses---------------- | K52: soit | L52: 12.74931479 | M52: % | N52: ------- selon le ratio 100% JSN | R52: VOTRE VC
G53: 7759 | H53: Artilleuses d'élites------ | K53: soit | L53: 2.678343355 | M53: % | N53: ------- selon le ratio 100% JSN
G54: 2716 | H54: Soldates d'élites-------- | K54: soit | L54: 0.9375409915 | M54: % | N54: ------- selon le ratio 100% JSN | R54: 10
G55: 0 | H55: Tanks --------------------- | K55: soit | L55: 0 | M55: % | N55: ------- selon le ratio 100% JSN
G56: 0 | H56: Tanks d'élites------------ | K56: soit | L56: 0 | M56: % | N56: ------- selon le ratio 100% JSN
G57: 0 | H57: Tueuses ------------------ | K57: soit | L57: 0 | M57: % | N57: ------- selon le ratio 100% JSN | R57: VOTRE TDP
G58: 0 | H58: Tueuses d'élites--------- | K58: soit | L58: 0 | M58: % | N58: ------- selon le ratio 100% JSN
R59: 0.34
G60: Vous avez une arme de niveau : | J60: =L24 -> 12
G61: Vous avez un bouclier de niveau : | J61: =L27 -> 10
G62: Vous avez un Dôme de niveau : | J62: =R33 -> 10
G63: Vous avez une Loge Impèriale de niveau : | J63: =U33 -> 11
G65: Vous avez une bonus de vie en Dôme de : | I65: =R36 -> 3336979.2
G66: soit un total de vie en dôme de : | I66: =R39 -> 14460243.2
G67: Vous avez un bonus de vie en Loge de : | I67: =U36 -> 10845182.4
G68: soit un total de vie en loge de : | I68: =U39 -> 21968446.4
G70: Vous avez une force de frappe brut de : | I70: =G24 -> 4014338
G71: Vous avez une vie brut de : | I71: =G27 -> 5561632
G72: Vous avez une force de défense brut de : | I72: =G30 -> 2863465
G74: A cela s'ajoute :
G76: Le bonus d'arme en force de frappe de : | J76: =J24 -> 4817205.6
G77: Le bonus d'arme en défense de : | J77: =J30 -> 3436158
G78: Le bonus de bouclier en vie de : | J78: =J27 -> 5561632
G80: Soit :
G82: Une force de frappe totale de : | J82: =P24 -> 8831543.6
G83: Ce qui représente : | J83: =R24 -> -20.60294892 | K83: % | L83: de différence, entre, la force de frappe et la vie
G84: Aussi : | J84: =U24 -> 40.19162099 | K84: % | L84: de différence, entre, la force de frappe et la force de défense
G86: Une vie totale de : | J86: =P27 -> 11123264
G87: Ce qui représente : | J87: =R27 -> 25.94926214 | K87: % | L87: de différence, entre, la vie et la force de frappe
G88: Aussi : | J88: =U27 -> 76.57031222 | K88: % | L88: de différence, entre, la vie et la force de défense
G91: Une force de défense totale de : | J91: =P30 -> 6299623
G92: Ce qui représente : | J92: =R30 -> -28.66906075 | K92: % | L92: de différence, entre la force de défense et la force de frappe
G93: Aussi : | J93: =U30 -> -43.36533773 | K93: % | L93: de différence, entre la force de défense et la vie
G95: Votre niveau de vitesse d'Attaque est de : | J95: =R49 -> 14
G96: votre niveau de Vitesse de Chasse est de : | J96: =R54 -> 10
G98: Votre temps de ponte est d'actuellement : | J98: =R59 -> 0.34 | K98: pour 1 ouvrière

Sheet Auto sur sonde
B1: ANALYSE RC de sonde et CALCUL D'OPTI XP
B2: Rapport de sonde :
B4: Fourmizzz 08/02/2013 18h57 Rapport de combat Vous attaquez la fourmilière de xxxx Troupes en attaque:1 000 Jeunes Soldates Naines. Troupes en défense:76 238 411 Jeunes Soldates Naines, 157 Soldates Naines, 7 000 755 Concierges, 2 000 000 Tanks. Vous infligez 3 000(+6 600) dégâts et tuez 311 ennemies. L’ennemie inflige 329 496 325(+658 992 650) dégâts à vos fourmis et en tue 1 000. Vous avez infiltré l’ennemi. Les informations sont bien rentrées... mais pas vos soldates !
B5: Supprimez le contenu de la cellule, puis copier un RC de sonde, qui a échoué (vous n'avez pas tué tous les ennemis^^) dans la cellule (et non sur la cellule -> double clic pour avoir le curseur texte)
B6: Ennemi : | N6: Extraction des données du RC :
B8: Type d'unité | C8: Nb unité | D8: Att HB | E8: Def HB | F8: Vie HB | G8: Modifier nb unité | I8: Mode d'emploi : | N8: Nb unité | O8: Nb tué | P8: Position | Q8: Suivant | R8: Texte à Analyser
B9: Jeune Soldate Naine | C9: =IF(G9>0,G9,N9-O9) -> 76238100 | D9: =Data!C5*$N9 -> 228715233 | E9: =Data!D5*$N9 -> 152476822 | F9: =Data!E5*$N9 -> 609907288 | N9: =IF((P9>0),VALUE(SUBSTITUTE(MID(R9,1,(P9-1))," ","")),0) -> 76238411 | O9: =MIN(Q$26-0,N9) -> 311 | P9: =IF(ISERROR(SEARCH(Data!F5,R9)),IF(ISERROR(SEARCH(Data!G5,R9)),0,SEARCH(Data!G5,R9)),SEARCH(Data!F5,R9)) -> 12 | Q9: =IF(ISERROR(SEARCH(",",R9,P9)),IF(ISERROR(SEARCH(".",R9,P9)),0,(SEARCH(".",R9,P9)+2)),(SEARCH(",",R9,P9)+2)) -> 36 | R9: =MID(B4,(SEARCH("Troupes en défense",B4)+19),SEARCH(".",MID(B4,(SEARCH("Troupes en défense",B4)+19),1000))) -> 76 238 411 Jeunes Soldates Naines, 157 Soldates Naines, 7 000 755 Concierges, 2 000 000 Tanks.
B10: Soldate Naine | D10: =Data!C6*$N10 -> 785 | E10: =Data!D6*$N10 -> 628 | F10: =Data!E6*$N10 -> 1570 | I10: 1/ Copier le RC de la sonde | N10: =IF((P10>0),VALUE(SUBSTITUTE(MID(R10,1,(P10-1))," ","")),0) -> 157 | O10: =MIN(Q$26-SUM(O$9:O9),N10) -> 0 | P10: =IF(ISERROR(SEARCH(Data!F6,R10)),IF(ISERROR(SEARCH(Data!G6,R10)),0,SEARCH(Data!G6,R10)),SEARCH(Data!F6,R10)) -> 5 | Q10: 22 | R10: =IF(((P9+Q9)>0),MID(R9,Q9,5000),R9) -> 157 Soldates Naines, 7 000 755 Concierges, 2 000 000 Tanks.
B11: Naine d'Elite | C11: =IF(G11>0,G11,N11-O11) -> 0 | D11: =Data!C7*$N11 -> 0 | E11: =Data!D7*$N11 -> 0 | F11: =Data!E7*$N11 -> 0 | I11: 2/ Renseigner "Mon niveau" Armes et Bouclier | N11: 0 | O11: =MIN(Q$26-SUM(O$9:O10),N11) -> 0 | P11: =IF(ISERROR(SEARCH(Data!F7,R11)),IF(ISERROR(SEARCH(Data!G7,R11)),0,SEARCH(Data!G7,R11)),SEARCH(Data!F7,R11)) -> 0 | Q11: 0 | R11: 7 000 755 Concierges, 2 000 000 Tanks.
B12: Jeune Soldate | C12: 0 | D12: =Data!C8*$N12 -> 0 | E12: =Data!D8*$N12 -> 0 | F12: =Data!E8*$N12 -> 0 | I12: 3/ Saisir les unités à envoyer | N12: 0 | O12: =MIN(Q$26-SUM(O$9:O11),N12) -> 0 | P12: =IF(ISERROR(SEARCH(Data!F8,R12)),IF(ISERROR(SEARCH(Data!G8,R12)),0,SEARCH(Data!G8,R12)),SEARCH(Data!F8,R12)) -> 0 | Q12: 0 | R12: 7 000 755 Concierges, 2 000 000 Tanks.
B13: Soldate | C13: 0 | D13: =Data!C9*$N13 -> 0 | E13: =Data!D9*$N13 -> 0 | F13: =Data!E9*$N13 -> 0 | N13: 0 | O13: =MIN(Q$26-SUM(O$9:O12),N13) -> 0 | P13: =IF(ISERROR(SEARCH(Data!F9,R13)),IF(ISERROR(SEARCH(Data!G9,R13)),0,SEARCH(Data!G9,R13)),SEARCH(Data!F9,R13)) -> 0 | Q13: 0 | R13: 7 000 755 Concierges, 2 000 000 Tanks.
B14: Concierge | C14: 7000755 | D14: =Data!C10*$N14 -> 7000755 | E14: =Data!D10*$N14 -> 175018875 | F14: =Data!E10*$N14 -> 210022650 | G14: 0 | I14: Légende | N14: 7000755 | O14: =MIN(Q$26-SUM(O$9:O13),N14) -> 0 | P14: =IF(ISERROR(SEARCH(Data!F10,R14)),IF(ISERROR(SEARCH(Data!G10,R14)),0,SEARCH(Data!G10,R14)),SEARCH(Data!F10,R14)) -> 11 | Q14: 23 | R14: 7 000 755 Concierges, 2 000 000 Tanks.
B15: Concierge d'élite | C15: 0 | D15: =Data!C11*$N15 -> 0 | E15: =Data!D11*$N15 -> 0 | F15: =Data!E11*$N15 -> 0 | N15: 0 | O15: =MIN(Q$26-SUM(O$9:O14),N15) -> 0 | P15: =IF(ISERROR(SEARCH(Data!F11,R15)),IF(ISERROR(SEARCH(Data!G11,R15)),0,SEARCH(Data!G11,R15)),SEARCH(Data!F11,R15)) -> 0 | Q15: 0 | R15: 2 000 000 Tanks.
B16: Artilleuse | C16: 0 | D16: =Data!C12*$N16 -> 0 | E16: =Data!D12*$N16 -> 0 | F16: =Data!E12*$N16 -> 0 | I16: cellule à renseigner | L16: (les seules à modifier) | N16: 0 | O16: =MIN(Q$26-SUM(O$9:O15),N16) -> 0 | P16: =IF(ISERROR(SEARCH(Data!F12,R16)),IF(ISERROR(SEARCH(Data!G12,R16)),0,SEARCH(Data!G12,R16)),SEARCH(Data!F12,R16)) -> 0 | Q16: 0 | R16: 2 000 000 Tanks.
B17: Artilleuse d'élite | C17: 0 | D17: =Data!C13*$N17 -> 0 | E17: =Data!D13*$N17 -> 0 | F17: =Data!E13*$N17 -> 0 | N17: 0 | O17: =MIN(Q$26-SUM(O$9:O16),N17) -> 0 | P17: =IF(ISERROR(SEARCH(Data!F13,R17)),IF(ISERROR(SEARCH(Data!G13,R17)),0,SEARCH(Data!G13,R17)),SEARCH(Data!F13,R17)) -> 0 | Q17: 0 | R17: 2 000 000 Tanks.
B18: Soldate d'élite | C18: 0 | D18: =Data!C14*$N18 -> 0 | E18: =Data!D14*$N18 -> 0 | F18: =Data!E14*$N18 -> 0 | I18: résultat de calcul | N18: 0 | O18: =MIN(Q$26-SUM(O$9:O17),N18) -> 0 | P18: =IF(ISERROR(SEARCH(Data!F14,R18)),IF(ISERROR(SEARCH(Data!G14,R18)),0,SEARCH(Data!G14,R18)),SEARCH(Data!F14,R18)) -> 0 | Q18: 0 | R18: 2 000 000 Tanks.
B19: Tank | C19: 2000000 | D19: =Data!C15*$N19 -> 110000000 | E19: =Data!D15*$N19 -> 2000000 | F19: =Data!E15*$N19 -> 70000000 | N19: 2000000 | O19: =MIN(Q$26-SUM(O$9:O18),N19) -> 0 | P19: =IF(ISERROR(SEARCH(Data!F15,R19)),IF(ISERROR(SEARCH(Data!G15,R19)),0,SEARCH(Data!G15,R19)),SEARCH(Data!F15,R19)) -> 11 | Q19: 18 | R19: 2 000 000 Tanks.
B20: Tank d'élite | C20: 0 | D20: =Data!C16*$N20 -> 0 | E20: =Data!D16*$N20 -> 0 | F20: =Data!E16*$N20 -> 0 | I20: Titre | N20: 0 | O20: =MIN(Q$26-SUM(O$9:O19),N20) -> 0 | P20: =IF(ISERROR(SEARCH(Data!F16,R20)),IF(ISERROR(SEARCH(Data!G16,R20)),0,SEARCH(Data!G16,R20)),SEARCH(Data!F16,R20)) -> 0 | Q20: 0
B21: Tueuse | C21: 0 | D21: =Data!C17*$N21 -> 0 | E21: =Data!D17*$N21 -> 0 | F21: =Data!E17*$N21 -> 0 | N21: 0 | O21: =MIN(Q$26-SUM(O$9:O20),N21) -> 0 | P21: =IF(ISERROR(SEARCH(Data!F17,R21)),IF(ISERROR(SEARCH(Data!G17,R21)),0,SEARCH(Data!G17,R21)),SEARCH(Data!F17,R21)) -> 0 | Q21: 0
B22: Tueuse d'élite | C22: 0 | D22: =Data!C18*$N22 -> 0 | E22: =Data!D18*$N22 -> 0 | F22: =Data!E18*$N22 -> 0 | I22: Titre ou résultat de calcul | N22: 0 | O22: =MIN(Q$26-SUM(O$9:O21),N22) -> 0 | P22: =IF(ISERROR(SEARCH(Data!F18,R22)),IF(ISERROR(SEARCH(Data!G18,R22)),0,SEARCH(Data!G18,R22)),SEARCH(Data!F18,R22)) -> 0 | Q22: 0
B23: TOTAUX : | C23: =SUM(N9:N22) -> 85239323 | D23: =SUM(D9:D22) -> 345716773 | E23: =SUM(E9:E22) -> 329496325 | F23: =SUM(F9:F22) -> 889931508
Q24: Valeur | R24: Extraction du texte
P25: Dégâts sonde : | Q25: =VALUE(SUBSTITUTE(MID(R25,1,(SEARCH("(",R25)-1))," ","")+VALUE(SUBSTITUTE(MID(R25,(SEARCH("(",R25)+2),((SEARCH(")",R25)-SEARCH("(",R25))-2))," ",""))) -> 9600 | R25: =MID(B4,(SEARCH("Vous infligez",B4)+14),((SEARCH("dégâts",B4)-SEARCH("Vous infligez",B4))-14)) -> 3 000(+6 600)
B26: Multiplicateur vie ennemi : | D26: =ROUND(((Q25/SUMPRODUCT(O9:O22,Data!E5:E18))*20),0)/20 -> 3.85 | E26: Vie HB x 3 : | G26: =F23*3 -> 2669794524 | P26: Pertes ennemi : | Q26: =R26 -> 311 | R26: =VALUE(SUBSTITUTE(MID(B4,(SEARCH("dégâts",B4)+14),((SEARCH("ennemies.",B4)-SEARCH("dégâts",B4))-14))," ","")) -> 311
B27: =CONCATENATE("(",MID(MID(B4,(SEARCH("Vous attaquez",B4)+14),100),1,(SEARCH("de",MID(B4,(SEARCH("Vous attaquez",B4)+14),100))-2)),") ") -> (la fourmilière) | E27: Vie AB lieu de la sonde : | G27: =F23*D26 -> 3426236306
D28: FdF AB nécessaire pour réplique 10% : | G28: =MAX(G26:H27) -> 3426236306 | Q28: Valeur | R28: Extraction du texte
P29: Dégâts def AB : | Q29: =VALUE(SUBSTITUTE(MID(R29,1,(SEARCH("(",R29)-1))," ","")) + VALUE(SUBSTITUTE(MID(R29,(SEARCH("(",R29)+2),((SEARCH(")",R29)-SEARCH("(",R29))-2))," ","")) -> 988488975 | R29: =MID(B4,(SEARCH(" inflige ",B4)+9),((SEARCH("dégâts à vos",B4)-SEARCH(" inflige ",B4))-10)) -> 329 496 325(+658 992 650)
B30: Armes de l'ennemi : | D30: =ROUND((((Q29-Q30)/Q30)*10),0) -> 20 | F30: Défense AB : | G30: =E23*(1+(D30/10)) -> 988488975 | P30: Dégâts def HB : | Q30: =VALUE(SUBSTITUTE(MID(R29,1,(SEARCH("(",R29)-1))," ","")) -> 329496325
F31: Réplique 10% : | G31: =G30/10 -> 98848897.5
B34: Calcul attaque à lancer :
B36: Mon niveau Armes : | C36: 22 | G36: Nb unité à ajouter pour compléter la FdF nécessaire
B37: Mon niveau Bouclier : | C37: 22
B39: Type d'unité | C39: Nb unité envoyées | E39: Att AB
B40: Jeune Soldate Naine | C40: 4000000 | E40: =(Data!C5*$C40)*(1+(C$36/10)) -> 38400000 | G40: =IF((H$45>E$54),((H$45-E$54)/(Data!C5*(1+('Auto sur sonde'!C$36/10)))),"FdF suffisante") -> FdF suffisante | H40: JSN nécessaires en cas de réplique à 10% :
B41: Soldate Naine | E41: =(Data!C6*$C41)*(1+(C$36/10)) -> 0 | G41: =IF((H$45>E$54),((H$45-E$54)/(Data!C6*(1+('Auto sur sonde'!C$36/10)))),"FdF suffisante") -> FdF suffisante | H41: =ROUNDUP((G31/(Data!E5*(1+(C37/10)))),0) -> 3861286 | K41: =IF((C40>H41),"OK","Alerte !") -> OK
B42: Naine d'Elite | E42: =(Data!C7*$C42)*(1+(C$36/10)) -> 0 | G42: =IF((H$45>E$54),((H$45-E$54)/(Data!C7*(1+('Auto sur sonde'!C$36/10)))),"FdF suffisante") -> FdF suffisante
B43: Jeune Soldate | E43: =(Data!C8*$C43)*(1+(C$36/10)) -> 0 | G43: =IF((H$45>E$54),((H$45-E$54)/(Data!C8*(1+('Auto sur sonde'!C$36/10)))),"FdF suffisante") -> FdF suffisante
B44: Soldate | C44: 31000000 | E44: =(Data!C9*$C44)*(1+(C$36/10)) -> 1488000000 | G44: =IF((H$45>E$54),((H$45-E$54)/(Data!C9*(1+('Auto sur sonde'!C$36/10)))),"FdF suffisante") -> FdF suffisante | H44: FdF AB nécessaire pour réplique 10% :
B45: Concierge | E45: =(Data!C10*$C45)*(1+(C$36/10)) -> 0 | G45: =IF((H$45>E$54),((H$45-E$54)/(Data!C10*(1+('Auto sur sonde'!C$36/10)))),"FdF suffisante") -> FdF suffisante | H45: =G28 -> 3426236306 | K45: =IF((E54>H45),"OK","Alerte !") -> OK
B46: Concierge d'élite | E46: =(Data!C11*$C46)*(1+(C$36/10)) -> 0 | G46: =IF((H$45>E$54),((H$45-E$54)/(Data!C11*(1+('Auto sur sonde'!C$36/10)))),"FdF suffisante") -> FdF suffisante
B47: Artilleuse | E47: =(Data!C12*$C47)*(1+(C$36/10)) -> 0 | G47: =IF((H$45>E$54),((H$45-E$54)/(Data!C12*(1+('Auto sur sonde'!C$36/10)))),"FdF suffisante") -> FdF suffisante
B48: Artilleuse d'élite | E48: =(Data!C13*$C48)*(1+(C$36/10)) -> 0 | G48: =IF((H$45>E$54),((H$45-E$54)/(Data!C13*(1+('Auto sur sonde'!C$36/10)))),"FdF suffisante") -> FdF suffisante
B49: Soldate d'élite | E49: =(Data!C14*$C49)*(1+(C$36/10)) -> 0 | G49: =IF((H$45>E$54),((H$45-E$54)/(Data!C14*(1+('Auto sur sonde'!C$36/10)))),"FdF suffisante") -> FdF suffisante
B50: Tank | C50: 11000000 | E50: =(Data!C15*$C50)*(1+(C$36/10)) -> 1936000000 | G50: =IF((H$45>E$54),((H$45-E$54)/(Data!C15*(1+('Auto sur sonde'!C$36/10)))),"FdF suffisante") -> FdF suffisante
B51: Tank d'élite | E51: =(Data!C16*$C51)*(1+(C$36/10)) -> 0 | G51: =IF((H$45>E$54),((H$45-E$54)/(Data!C16*(1+('Auto sur sonde'!C$36/10)))),"FdF suffisante") -> FdF suffisante
B52: Tueuse | E52: =(Data!C17*$C52)*(1+(C$36/10)) -> 0 | G52: =IF((H$45>E$54),((H$45-E$54)/(Data!C17*(1+('Auto sur sonde'!C$36/10)))),"FdF suffisante") -> FdF suffisante
B53: Tueuse d'élite | E53: =(Data!C18*$C53)*(1+(C$36/10)) -> 0 | G53: =IF((H$45>E$54),((H$45-E$54)/(Data!C18*(1+('Auto sur sonde'!C$36/10)))),"FdF suffisante") -> FdF suffisante
B54: TOTAUX : | C54: =SUM(C40:C53) -> 46000000 | E54: =SUM(E40:E53) -> 3462400000

Sheet Manuel
B1: Petit tableur pour calculer une opti d'Xp...
B2: Import d'armée :
B4: 76 238 411 Jeunes Soldates Naines, 157 Soldates Naines, 7 000 755 Concierges, 2 000 000 Tanks.
B5: Supprimez le contenu de la cellule, puis copier une armée, unités séparées par des virgules ou points.
B6: Ennemi : | O6: Extraction des données armée :
B8: Type d'unité | C8: Nb unité | D8: Nb unité | E8: Att HB | F8: Def HB | G8: Vie HB | I8: Mode d'emploi : | O8: Position | P8: Suivant | Q8: Texte à Analyser
B9: Jeune Soldate Naine | C9: 76238100 | D9: =IF(C9=0,IF((O9>0),VALUE(SUBSTITUTE(MID(Q9,1,(O9-1))," ","")),0),C9) -> 76238100 | E9: =Data!C5*$D9 -> 228714300 | F9: =Data!D5*$D9 -> 152476200 | G9: =Data!E5*$D9 -> 609904800 | O9: =IF(ISERROR(SEARCH(Data!F5,Q9)),IF(ISERROR(SEARCH(Data!G5,Q9)),0,SEARCH(Data!G5,Q9)),SEARCH(Data!F5,Q9)) -> 12 | P9: =IF(ISERROR(SEARCH(",",Q9,O9)),IF(ISERROR(SEARCH(".",Q9,O9)),0,(SEARCH(".",Q9,O9)+2)),(SEARCH(",",Q9,O9)+2)) -> 36 | Q9: =B4 -> 76 238 411 Jeunes Soldates Naines, 157 Soldates Naines, 7 000 755 Concierges, 2 000 000 Tanks.
B10: Soldate Naine | D10: =IF(C10=0,IF((O10>0),VALUE(SUBSTITUTE(MID(Q10,1,(O10-1))," ","")),0),C10) -> 157 | E10: =Data!C6*$D10 -> 785 | F10: =Data!D6*$D10 -> 628 | G10: =Data!E6*$D10 -> 1570 | I10: 1/ Copier l'armée ou remplir le nombre d'unité | O10: =IF(ISERROR(SEARCH(Data!F6,Q10)),IF(ISERROR(SEARCH(Data!G6,Q10)),0,SEARCH(Data!G6,Q10)),SEARCH(Data!F6,Q10)) -> 5 | P10: 22 | Q10: =IF(((O9+P9)>0),MID(Q9,P9,5000),Q9) -> 157 Soldates Naines, 7 000 755 Concierges, 2 000 000 Tanks.
B11: Naine d'Elite | D11: 0 | E11: =Data!C7*$D11 -> 0 | F11: =Data!D7*$D11 -> 0 | G11: =Data!E7*$D11 -> 0 | I11: (les valeurs saisies ont la priorité sur les valeurs importées). | O11: =IF(ISERROR(SEARCH(Data!F7,Q11)),IF(ISERROR(SEARCH(Data!G7,Q11)),0,SEARCH(Data!G7,Q11)),SEARCH(Data!F7,Q11)) -> 0 | P11: 0 | Q11: 7 000 755 Concierges, 2 000 000 Tanks.
B12: Jeune Soldate | D12: 0 | E12: =Data!C8*$D12 -> 0 | F12: =Data!D8*$D12 -> 0 | G12: =Data!E8*$D12 -> 0 | I12: 2/ Saisir armes, bouclier dome ou loge de l'ennemi | O12: =IF(ISERROR(SEARCH(Data!F8,Q12)),IF(ISERROR(SEARCH(Data!G8,Q12)),0,SEARCH(Data!G8,Q12)),SEARCH(Data!F8,Q12)) -> 0 | P12: 0 | Q12: 7 000 755 Concierges, 2 000 000 Tanks.
B13: Soldate | D13: 0 | E13: =Data!C9*$D13 -> 0 | F13: =Data!D9*$D13 -> 0 | G13: =Data!E9*$D13 -> 0 | I13: 3/ Saisir vos niveaux d'arme et bouclier | O13: =IF(ISERROR(SEARCH(Data!F9,Q13)),IF(ISERROR(SEARCH(Data!G9,Q13)),0,SEARCH(Data!G9,Q13)),SEARCH(Data!F9,Q13)) -> 0 | P13: 0 | Q13: 7 000 755 Concierges, 2 000 000 Tanks.
B14: Concierge | D14: 7000755 | E14: =Data!C10*$D14 -> 7000755 | F14: =Data!D10*$D14 -> 175018875 | G14: =Data!E10*$D14 -> 210022650 | I14: 4/ Saisir vos unité à envoyer | O14: =IF(ISERROR(SEARCH(Data!F10,Q14)),IF(ISERROR(SEARCH(Data!G10,Q14)),0,SEARCH(Data!G10,Q14)),SEARCH(Data!F10,Q14)) -> 11 | P14: 23 | Q14: 7 000 755 Concierges, 2 000 000 Tanks.
B15: Concierge d'élite | D15: 0 | E15: =Data!C11*$D15 -> 0 | F15: =Data!D11*$D15 -> 0 | G15: =Data!E11*$D15 -> 0 | O15: =IF(ISERROR(SEARCH(Data!F11,Q15)),IF(ISERROR(SEARCH(Data!G11,Q15)),0,SEARCH(Data!G11,Q15)),SEARCH(Data!F11,Q15)) -> 0 | P15: 0 | Q15: 2 000 000 Tanks.
B16: Artilleuse | D16: 0 | E16: =Data!C12*$D16 -> 0 | F16: =Data!D12*$D16 -> 0 | G16: =Data!E12*$D16 -> 0 | I16: Légende : | O16: =IF(ISERROR(SEARCH(Data!F12,Q16)),IF(ISERROR(SEARCH(Data!G12,Q16)),0,SEARCH(Data!G12,Q16)),SEARCH(Data!F12,Q16)) -> 0 | P16: 0 | Q16: 2 000 000 Tanks.
B17: Artilleuse d'élite | D17: 0 | E17: =Data!C13*$D17 -> 0 | F17: =Data!D13*$D17 -> 0 | G17: =Data!E13*$D17 -> 0 | I17: cellule à renseigner | L17: (les seules à modifier) | O17: =IF(ISERROR(SEARCH(Data!F13,Q17)),IF(ISERROR(SEARCH(Data!G13,Q17)),0,SEARCH(Data!G13,Q17)),SEARCH(Data!F13,Q17)) -> 0 | P17: 0 | Q17: 2 000 000 Tanks.
B18: Soldate d'élite | D18: 0 | E18: =Data!C14*$D18 -> 0 | F18: =Data!D14*$D18 -> 0 | G18: =Data!E14*$D18 -> 0 | I18: résultat de calcul | O18: =IF(ISERROR(SEARCH(Data!F14,Q18)),IF(ISERROR(SEARCH(Data!G14,Q18)),0,SEARCH(Data!G14,Q18)),SEARCH(Data!F14,Q18)) -> 0 | P18: 0 | Q18: 2 000 000 Tanks.
B19: Tank | D19: 2000000 | E19: =Data!C15*$D19 -> 110000000 | F19: =Data!D15*$D19 -> 2000000 | G19: =Data!E15*$D19 -> 70000000 | I19: Titre | O19: =IF(ISERROR(SEARCH(Data!F15,Q19)),IF(ISERROR(SEARCH(Data!G15,Q19)),0,SEARCH(Data!G15,Q19)),SEARCH(Data!F15,Q19)) -> 11 | P19: 18 | Q19: 2 000 000 Tanks.
B20: Tank d'élite | D20: 0 | E20: =Data!C16*$D20 -> 0 | F20: =Data!D16*$D20 -> 0 | G20: =Data!E16*$D20 -> 0 | I20: Titre ou résultat de calcul | O20: =IF(ISERROR(SEARCH(Data!F16,Q20)),IF(ISERROR(SEARCH(Data!G16,Q20)),0,SEARCH(Data!G16,Q20)),SEARCH(Data!F16,Q20)) -> 0 | P20: 0
B21: Tueuse | D21: 0 | E21: =Data!C17*$D21 -> 0 | F21: =Data!D17*$D21 -> 0 | G21: =Data!E17*$D21 -> 0 | O21: =IF(ISERROR(SEARCH(Data!F17,Q21)),IF(ISERROR(SEARCH(Data!G17,Q21)),0,SEARCH(Data!G17,Q21)),SEARCH(Data!F17,Q21)) -> 0 | P21: 0
B22: Tueuse d'élite | D22: 0 | E22: =Data!C18*$D22 -> 0 | F22: =Data!D18*$D22 -> 0 | G22: =Data!E18*$D22 -> 0 | O22: =IF(ISERROR(SEARCH(Data!F18,Q22)),IF(ISERROR(SEARCH(Data!G18,Q22)),0,SEARCH(Data!G18,Q22)),SEARCH(Data!F18,Q22)) -> 0 | P22: 0
B23: TOTAUX : | C23: =SUM(C9:C22) -> 76238100 | D23: =SUM(D9:D22) -> 85239012 | E23: =SUM(E9:E22) -> 345715840 | F23: =SUM(F9:F22) -> 329495703 | G23: =SUM(G9:G22) -> 889929020
B25: Armes : | D25: 20 | E25: Vie HB x 3 : | G25: =G23*3 -> 2669787060 | I25: FdF AB nécessaire pour une réplique à 10%
B26: Bouclier : | D26: 20
B27: Dôme : | D27: 15 | E27: Vie AB Dome : | G27: =G23*D29 -> 3426226727 | I27: En dôme : | K27: =MAX(G25,G27) -> 3426226727
C28: Loge : | D28: 18 | E28: Vie AB Loge : | G28: =G23*D30 -> 5339574120 | I28: En loge : | K28: =MAX(G25,G28) -> 5339574120
B29: Multiplicateur vie Dome : | D29: =1+D26/10+0.1+0.05*D27 -> 3.85
B30: Multiplicateur vie Loge : | D30: =1+D26/10+0.3+0.15*D28 -> 6 | F30: Défense AB : | G30: =F23*(1+D25/10) -> 988487109
D31: FdF AB nécessaire pour réplique 10% : | F31: Réplique 10% : | G31: =G30/10 -> 98848710.9
B37: Calcul attaque à lancer :
B39: Mon niveau Armes : | C39: 22 | G39: Nb unité à ajouter pour compléter la FdF nécessaire
B40: Mon niveau Bouclier : | C40: 22
B42: Type d'unité | C42: Nb unité envoyées | E42: Att AB | G42: Dôme | H42: Loge
B43: Jeune Soldate Naine | C43: 4000000 | E43: =(Data!C5*$C43)*(1+(C$39/10)) -> 38400000 | G43: =IF((J$47>E$57),((J$47-E$57)/(Data!C5*(1+(Manuel!C$39/10)))),"FdF suffisante") -> FdF suffisante | H43: =IF((J$53>E$57),((J$53-E$57)/(Data!C5*(1+(C$39/10)))),"FdF suffisante") -> 195538970.8 | J43: Dôme
B44: Soldate Naine | E44: =(Data!C6*$C44)*(1+(C$39/10)) -> 0 | G44: =IF((J$47>E$57),((J$47-E$57)/(Data!C6*(1+(Manuel!C$39/10)))),"FdF suffisante") -> FdF suffisante | H44: =IF((J$53>E$57),((J$53-E$57)/(Data!C6*(1+(C$39/10)))),"FdF suffisante") -> 117323382.5 | J44: JSN nécessaires en cas de réplique à 10% :
B45: Naine d'Elite | E45: =(Data!C7*$C45)*(1+(C$39/10)) -> 0 | G45: =IF((J$47>E$57),((J$47-E$57)/(Data!C7*(1+(Manuel!C$39/10)))),"FdF suffisante") -> FdF suffisante | H45: =IF((J$53>E$57),((J$53-E$57)/(Data!C7*(1+(C$39/10)))),"FdF suffisante") -> 83802416.07 | J45: =ROUNDUP((G31/(Data!E5*(1+(C40/10)))),0) -> 3861278 | M45: =IF((C43>J45),"OK","Alerte !") -> OK
B46: Jeune Soldate | E46: =(Data!C8*$C46)*(1+(C$39/10)) -> 0 | G46: =IF((J$47>E$57),((J$47-E$57)/(Data!C8*(1+(Manuel!C$39/10)))),"FdF suffisante") -> FdF suffisante | H46: =IF((J$53>E$57),((J$53-E$57)/(Data!C8*(1+(C$39/10)))),"FdF suffisante") -> 58661691.25 | J46: FdF AB nécessaire pour réplique 10% :
B47: Soldate | C47: 31000000 | E47: =(Data!C9*$C47)*(1+(C$39/10)) -> 1488000000 | G47: =IF((J$47>E$57),((J$47-E$57)/(Data!C9*(1+(Manuel!C$39/10)))),"FdF suffisante") -> FdF suffisante | H47: =IF((J$53>E$57),((J$53-E$57)/(Data!C9*(1+(C$39/10)))),"FdF suffisante") -> 39107794.17 | J47: =K27 -> 3426226727 | M47: =IF((E57>J47),"OK","Alerte !") -> OK
B48: Concierge | E48: =(Data!C10*$C48)*(1+(C$39/10)) -> 0 | G48: =IF((J$47>E$57),((J$47-E$57)/(Data!C10*(1+(Manuel!C$39/10)))),"FdF suffisante") -> FdF suffisante | H48: =IF((J$53>E$57),((J$53-E$57)/(Data!C10*(1+(C$39/10)))),"FdF suffisante") -> 586616912.5
B49: Concierge d'élite | E49: =(Data!C11*$C49)*(1+(C$39/10)) -> 0 | G49: =IF((J$47>E$57),((J$47-E$57)/(Data!C11*(1+(Manuel!C$39/10)))),"FdF suffisante") -> FdF suffisante | H49: =IF((J$53>E$57),((J$53-E$57)/(Data!C11*(1+(C$39/10)))),"FdF suffisante") -> 586616912.5 | J49: Loge
B50: Artilleuse | E50: =(Data!C12*$C50)*(1+(C$39/10)) -> 0 | G50: =IF((J$47>E$57),((J$47-E$57)/(Data!C12*(1+(Manuel!C$39/10)))),"FdF suffisante") -> FdF suffisante | H50: =IF((J$53>E$57),((J$53-E$57)/(Data!C12*(1+(C$39/10)))),"FdF suffisante") -> 19553897.08 | J50: JSN nécessaires en cas de réplique à 10% :
B51: Artilleuse d'élite | E51: =(Data!C13*$C51)*(1+(C$39/10)) -> 0 | G51: =IF((J$47>E$57),((J$47-E$57)/(Data!C13*(1+(Manuel!C$39/10)))),"FdF suffisante") -> FdF suffisante | H51: =IF((J$53>E$57),((J$53-E$57)/(Data!C13*(1+(C$39/10)))),"FdF suffisante") -> 16760483.21 | J51: =ROUNDUP((G31/(Data!E5*(1+(C40/10)))),0) -> 3861278 | M51: =IF((C43>J51),"OK","Alerte !") -> OK
B52: Soldate d'élite | E52: =(Data!C14*$C52)*(1+(C$39/10)) -> 0 | G52: =IF((J$47>E$57),((J$47-E$57)/(Data!C14*(1+(Manuel!C$39/10)))),"FdF suffisante") -> FdF suffisante | H52: =IF((J$53>E$57),((J$53-E$57)/(Data!C14*(1+(C$39/10)))),"FdF suffisante") -> 24442371.35 | J52: FdF AB nécessaire pour réplique 10% :
B53: Tank | C53: 11000000 | E53: =(Data!C15*$C53)*(1+(C$39/10)) -> 1936000000 | G53: =IF((J$47>E$57),((J$47-E$57)/(Data!C15*(1+(Manuel!C$39/10)))),"FdF suffisante") -> FdF suffisante | H53: =IF((J$53>E$57),((J$53-E$57)/(Data!C15*(1+(C$39/10)))),"FdF suffisante") -> 10665762.05 | J53: =K28 -> 5339574120 | M53: =IF((E65>J53),"OK","Alerte !") -> Alerte !
B54: Tank d'élite | E54: =(Data!C16*$C54)*(1+(C$39/10)) -> 0 | G54: =IF((J$47>E$57),((J$47-E$57)/(Data!C16*(1+(Manuel!C$39/10)))),"FdF suffisante") -> FdF suffisante | H54: =IF((J$53>E$57),((J$53-E$57)/(Data!C16*(1+(C$39/10)))),"FdF suffisante") -> 7332711.406
B55: Tueuse | E55: =(Data!C17*$C55)*(1+(C$39/10)) -> 0 | G55: =IF((J$47>E$57),((J$47-E$57)/(Data!C17*(1+(Manuel!C$39/10)))),"FdF suffisante") -> FdF suffisante | H55: =IF((J$53>E$57),((J$53-E$57)/(Data!C17*(1+(C$39/10)))),"FdF suffisante") -> 11732338.25
B56: Tueuse d'élite | E56: =(Data!C18*$C56)*(1+(C$39/10)) -> 0 | G56: =IF((J$47>E$57),((J$47-E$57)/(Data!C18*(1+(Manuel!C$39/10)))),"FdF suffisante") -> FdF suffisante | H56: =IF((J$53>E$57),((J$53-E$57)/(Data!C18*(1+(C$39/10)))),"FdF suffisante") -> 10665762.05
B57: TOTAUX : | C57: =SUM(C43:C56) -> 46000000 | E57: =SUM(E43:E56) -> 3462400000

Sheet Multiplicateurs vie
B1: Combinaisons bouclier/dôme et bouclier/loge (plus bas dans la page) => multiplicateur de vie
B2: Multiplicateur : | F2: 2.5 | J2: Saisissez ici le multiplicateur de vie trouvé sur une sonde pour voir les combinaison bouclier/dôme ou bouclier/loge possibles (selon le lieu de la sonde).
B4: Bouclier : | D4: =ROUND(($F$2-1-0.1-D5*0.05)*100,0)/10 -> 14 | E4: =D4-1 -> 13 | F4: =E4-1 -> 12 | G4: 11 | H4: 10 | I4: 9 | J4: 8 | K4: 7 | L4: 6 | M4: 5 | N4: 4 | O4: 3 | P4: 2 | Q4: 1 | R4: 0 | S4: -1 | T4: -2 | U4: -3 | V4: -4 | W4: -5 | X4: -6 | Y4: -7 | Z4: -8 | AA4: -9 | AB4: -10 | AC4: -11 | AD4: -12 | AE4: -13 | AF4: -14 | AG4: -15 | AH4: -16 | AI4: -17 | AJ4: -18 | AK4: -19 | AL4: -20 | AM4: -21 | AN4: -22 | AO4: -23 | AP4: -24 | AQ4: -25 | AR4: -26 | AS4: -27 | AT4: -28 | AU4: -29 | AV4: -30 | AW4: -31 | AX4: -32 | AY4: -33 | AZ4: -34 | BA4: -35
B5: Dôme : | D5: =IF(ROUND($F$2*10,0)/10=$F$2,0,1) -> 0 | E5: =($F$2-1-0.1*E4-0.1)/0.05 -> 2 | F5: 4 | G5: 6 | H5: 8 | I5: 10 | J5: 12 | K5: 14 | L5: 16 | M5: 18 | N5: 20 | O5: 22 | P5: 24 | Q5: 26 | R5: 28 | S5: 30 | T5: 32 | U5: 34 | V5: 36 | W5: 38 | X5: 40 | Y5: 42 | Z5: 44 | AA5: 46 | AB5: 48 | AC5: 50 | AD5: 52 | AE5: 54 | AF5: 56 | AG5: 58 | AH5: 60 | AI5: 62 | AJ5: 64 | AK5: =($F$2-1-0.1*AK4-0.1)/0.05 -> 66 | AL5: 68 | AM5: 70 | AN5: 72 | AO5: 74 | AP5: 76 | AQ5: 78 | AR5: 80 | AS5: 82 | AT5: 84 | AU5: 86 | AV5: 88 | AW5: 90 | AX5: 92 | AY5: 94 | AZ5: 96 | BA5: 98
B7: Bouclier : | D7: =ROUND(($F$2-1-0.3-D8*0.15)*100,0)/10 -> 12 | E7: =D7-3 -> 9 | F7: =E7-3 -> 6 | G7: 3 | H7: 0 | I7: -3 | J7: -6 | K7: -9 | L7: -12 | M7: -15 | N7: -18 | O7: -21 | P7: -24 | Q7: -27 | R7: -30 | S7: -33 | T7: -36 | U7: -39 | V7: -42 | W7: -45 | X7: -48 | Y7: -51 | Z7: -54 | AA7: -57 | AB7: -60 | AC7: -63 | AD7: -66 | AE7: -69 | AF7: -72 | AG7: -75 | AH7: -78 | AI7: -81 | AJ7: -84 | AK7: -87 | AL7: -90 | AM7: -93 | AN7: -96 | AO7: -99 | AP7: -102 | AQ7: -105 | AR7: -108 | AS7: -111 | AT7: -114 | AU7: -117 | AV7: -120 | AW7: -123 | AX7: -126 | AY7: -129 | AZ7: -132 | BA7: -135
B8: Loge : | D8: =IF(ROUND($F$2*10,0)/10=$F$2,0,1) -> 0 | E8: =($F$2-1-0.1*E7-0.3)/0.15 -> 2 | F8: =($F$2-1-0.1*F7-0.3)/0.15 -> 4 | G8: 6 | H8: 8 | I8: 10 | J8: 12 | K8: 14 | L8: 16 | M8: 18 | N8: 20 | O8: 22 | P8: 24 | Q8: 26 | R8: 28 | S8: 30 | T8: 32 | U8: 34 | V8: 36 | W8: 38 | X8: 40 | Y8: 42 | Z8: 44 | AA8: 46 | AB8: 48 | AC8: 50 | AD8: 52 | AE8: 54 | AF8: 56 | AG8: 58 | AH8: 60 | AI8: 62 | AJ8: 64 | AK8: 66 | AL8: 68 | AM8: 70 | AN8: 72 | AO8: 74 | AP8: 76 | AQ8: 78 | AR8: 80 | AS8: 82 | AT8: 84 | AU8: 86 | AV8: 88 | AW8: 90 | AX8: 92 | AY8: 94 | AZ8: 96 | BA8: 98
C10: Dôme
B11: Bouclier | C11: 0 | D11: 1 | E11: 2 | F11: 3 | G11: 4 | H11: 5 | I11: 6 | J11: 7 | K11: 8 | L11: 9 | M11: 10 | N11: 11 | O11: 12 | P11: 13 | Q11: 14 | R11: 15 | S11: 16 | T11: 17 | U11: 18 | V11: 19 | W11: 20 | X11: 21 | Y11: 22 | Z11: 23 | AA11: 24 | AB11: 25 | AC11: 26 | AD11: 27 | AE11: 28 | AF11: 29 | AG11: 30 | AH11: 31 | AI11: 32 | AJ11: 33 | AK11: 34 | AL11: 35 | AM11: 36 | AN11: 37 | AO11: 38 | AP11: 39 | AQ11: 40 | AR11: 41 | AS11: 42 | AT11: 43 | AU11: 44 | AV11: 45 | AW11: 46 | AX11: 47 | AY11: 48 | AZ11: 49 | BA11: 50
B12: 0 | C12: =1+$B12*0.1+0.1+C$11*0.05 -> 1.1 | D12: =1+$B12*0.1+0.1+D$11*0.05 -> 1.15 | E12: 1.2 | F12: 1.25 | G12: 1.3 | H12: 1.35 | I12: 1.4 | J12: 1.45 | K12: 1.5 | L12: 1.55 | M12: 1.6 | N12: 1.65 | O12: 1.7 | P12: 1.75 | Q12: 1.8 | R12: 1.85 | S12: 1.9 | T12: 1.95 | U12: 2 | V12: 2.05 | W12: 2.1 | X12: 2.15 | Y12: 2.2 | Z12: 2.25 | AA12: 2.3 | AB12: 2.35 | AC12: 2.4 | AD12: 2.45 | AE12: 2.5 | AF12: 2.55 | AG12: 2.6 | AH12: 2.65 | AI12: 2.7 | AJ12: 2.75 | AK12: 2.8 | AL12: 2.85 | AM12: 2.9 | AN12: 2.95 | AO12: 3 | AP12: 3.05 | AQ12: 3.1 | AR12: 3.15 | AS12: 3.2 | AT12: 3.25 | AU12: 3.3 | AV12: 3.35 | AW12: 3.4 | AX12: 3.45 | AY12: 3.5 | AZ12: 3.55 | BA12: =1+$B12*0.1+0.1+BA$11*0.05 -> 3.6
B13: 1 | C13: 1.2 | D13: =1+$B13*0.1+0.1+D$11*0.05 -> 1.25 | E13: 1.3 | F13: 1.35 | G13: 1.4 | H13: 1.45 | I13: 1.5 | J13: 1.55 | K13: 1.6 | L13: 1.65 | M13: 1.7 | N13: 1.75 | O13: 1.8 | P13: 1.85 | Q13: 1.9 | R13: 1.95 | S13: 2 | T13: 2.05 | U13: 2.1 | V13: 2.15 | W13: 2.2 | X13: 2.25 | Y13: 2.3 | Z13: 2.35 | AA13: 2.4 | AB13: 2.45 | AC13: 2.5 | AD13: 2.55 | AE13: 2.6 | AF13: 2.65 | AG13: 2.7 | AH13: 2.75 | AI13: 2.8 | AJ13: 2.85 | AK13: 2.9 | AL13: 2.95 | AM13: 3 | AN13: 3.05 | AO13: 3.1 | AP13: 3.15 | AQ13: 3.2 | AR13: 3.25 | AS13: 3.3 | AT13: 3.35 | AU13: 3.4 | AV13: 3.45 | AW13: 3.5 | AX13: 3.55 | AY13: 3.6 | AZ13: 3.65 | BA13: 3.7
B14: 2 | C14: 1.3 | D14: 1.35 | E14: 1.4 | F14: 1.45 | G14: 1.5 | H14: 1.55 | I14: 1.6 | J14: 1.65 | K14: 1.7 | L14: 1.75 | M14: 1.8 | N14: 1.85 | O14: 1.9 | P14: 1.95 | Q14: 2 | R14: 2.05 | S14: 2.1 | T14: 2.15 | U14: 2.2 | V14: 2.25 | W14: 2.3 | X14: 2.35 | Y14: 2.4 | Z14: 2.45 | AA14: 2.5 | AB14: 2.55 | AC14: 2.6 | AD14: 2.65 | AE14: 2.7 | AF14: 2.75 | AG14: 2.8 | AH14: 2.85 | AI14: 2.9 | AJ14: 2.95 | AK14: 3 | AL14: 3.05 | AM14: 3.1 | AN14: 3.15 | AO14: 3.2 | AP14: 3.25 | AQ14: 3.3 | AR14: 3.35 | AS14: 3.4 | AT14: 3.45 | AU14: 3.5 | AV14: 3.55 | AW14: 3.6 | AX14: 3.65 | AY14: 3.7 | AZ14: 3.75 | BA14: 3.8
B15: 3 | C15: 1.4 | D15: 1.45 | E15: 1.5 | F15: 1.55 | G15: 1.6 | H15: 1.65 | I15: 1.7 | J15: 1.75 | K15: 1.8 | L15: 1.85 | M15: 1.9 | N15: 1.95 | O15: 2 | P15: 2.05 | Q15: 2.1 | R15: 2.15 | S15: 2.2 | T15: 2.25 | U15: 2.3 | V15: 2.35 | W15: 2.4 | X15: 2.45 | Y15: 2.5 | Z15: 2.55 | AA15: 2.6 | AB15: 2.65 | AC15: 2.7 | AD15: 2.75 | AE15: 2.8 | AF15: 2.85 | AG15: 2.9 | AH15: 2.95 | AI15: 3 | AJ15: 3.05 | AK15: 3.1 | AL15: 3.15 | AM15: 3.2 | AN15: 3.25 | AO15: 3.3 | AP15: 3.35 | AQ15: 3.4 | AR15: 3.45 | AS15: 3.5 | AT15: 3.55 | AU15: 3.6 | AV15: 3.65 | AW15: 3.7 | AX15: 3.75 | AY15: 3.8 | AZ15: 3.85 | BA15: 3.9
B16: 4 | C16: 1.5 | D16: 1.55 | E16: 1.6 | F16: 1.65 | G16: 1.7 | H16: 1.75 | I16: 1.8 | J16: 1.85 | K16: 1.9 | L16: 1.95 | M16: 2 | N16: 2.05 | O16: 2.1 | P16: 2.15 | Q16: 2.2 | R16: 2.25 | S16: 2.3 | T16: 2.35 | U16: 2.4 | V16: 2.45 | W16: 2.5 | X16: 2.55 | Y16: 2.6 | Z16: 2.65 | AA16: 2.7 | AB16: 2.75 | AC16: 2.8 | AD16: 2.85 | AE16: 2.9 | AF16: 2.95 | AG16: 3 | AH16: 3.05 | AI16: 3.1 | AJ16: 3.15 | AK16: 3.2 | AL16: 3.25 | AM16: 3.3 | AN16: 3.35 | AO16: 3.4 | AP16: 3.45 | AQ16: 3.5 | AR16: 3.55 | AS16: 3.6 | AT16: 3.65 | AU16: 3.7 | AV16: 3.75 | AW16: 3.8 | AX16: 3.85 | AY16: 3.9 | AZ16: 3.95 | BA16: 4
B17: 5 | C17: 1.6 | D17: 1.65 | E17: 1.7 | F17: 1.75 | G17: 1.8 | H17: 1.85 | I17: 1.9 | J17: 1.95 | K17: 2 | L17: 2.05 | M17: 2.1 | N17: 2.15 | O17: 2.2 | P17: 2.25 | Q17: 2.3 | R17: 2.35 | S17: 2.4 | T17: 2.45 | U17: 2.5 | V17: 2.55 | W17: 2.6 | X17: 2.65 | Y17: 2.7 | Z17: 2.75 | AA17: 2.8 | AB17: 2.85 | AC17: =1+$B17*0.1+0.1+AC$11*0.05 -> 2.9 | AD17: 2.95 | AE17: 3 | AF17: 3.05 | AG17: 3.1 | AH17: 3.15 | AI17: 3.2 | AJ17: 3.25 | AK17: 3.3 | AL17: 3.35 | AM17: 3.4 | AN17: 3.45 | AO17: 3.5 | AP17: 3.55 | AQ17: 3.6 | AR17: 3.65 | AS17: 3.7 | AT17: 3.75 | AU17: 3.8 | AV17: 3.85 | AW17: 3.9 | AX17: 3.95 | AY17: 4 | AZ17: 4.05 | BA17: 4.1
B18: 6 | C18: 1.7 | D18: 1.75 | E18: 1.8 | F18: 1.85 | G18: 1.9 | H18: 1.95 | I18: 2 | J18: 2.05 | K18: 2.1 | L18: 2.15 | M18: 2.2 | N18: 2.25 | O18: 2.3 | P18: 2.35 | Q18: 2.4 | R18: 2.45 | S18: 2.5 | T18: 2.55 | U18: 2.6 | V18: 2.65 | W18: 2.7 | X18: 2.75 | Y18: 2.8 | Z18: 2.85 | AA18: 2.9 | AB18: 2.95 | AC18: 3 | AD18: 3.05 | AE18: 3.1 | AF18: 3.15 | AG18: 3.2 | AH18: 3.25 | AI18: 3.3 | AJ18: 3.35 | AK18: 3.4 | AL18: 3.45 | AM18: 3.5 | AN18: 3.55 | AO18: 3.6 | AP18: 3.65 | AQ18: 3.7 | AR18: 3.75 | AS18: 3.8 | AT18: 3.85 | AU18: 3.9 | AV18: 3.95 | AW18: 4 | AX18: 4.05 | AY18: 4.1 | AZ18: 4.15 | BA18: 4.2
B19: 7 | C19: 1.8 | D19: 1.85 | E19: 1.9 | F19: 1.95 | G19: 2 | H19: 2.05 | I19: 2.1 | J19: 2.15 | K19: 2.2 | L19: 2.25 | M19: 2.3 | N19: 2.35 | O19: 2.4 | P19: 2.45 | Q19: 2.5 | R19: 2.55 | S19: 2.6 | T19: 2.65 | U19: 2.7 | V19: 2.75 | W19: 2.8 | X19: 2.85 | Y19: 2.9 | Z19: 2.95 | AA19: 3 | AB19: 3.05 | AC19: 3.1 | AD19: 3.15 | AE19: 3.2 | AF19: 3.25 | AG19: 3.3 | AH19: 3.35 | AI19: 3.4 | AJ19: 3.45 | AK19: 3.5 | AL19: 3.55 | AM19: 3.6 | AN19: 3.65 | AO19: 3.7 | AP19: 3.75 | AQ19: 3.8 | AR19: 3.85 | AS19: 3.9 | AT19: 3.95 | AU19: 4 | AV19: 4.05 | AW19: 4.1 | AX19: 4.15 | AY19: 4.2 | AZ19: 4.25 | BA19: 4.3
B20: 8 | C20: 1.9 | D20: 1.95 | E20: 2 | F20: 2.05 | G20: 2.1 | H20: 2.15 | I20: 2.2 | J20: 2.25 | K20: 2.3 | L20: 2.35 | M20: 2.4 | N20: 2.45 | O20: 2.5 | P20: 2.55 | Q20: 2.6 | R20: 2.65 | S20: 2.7 | T20: 2.75 | U20: 2.8 | V20: 2.85 | W20: 2.9 | X20: 2.95 | Y20: 3 | Z20: 3.05 | AA20: 3.1 | AB20: 3.15 | AC20: 3.2 | AD20: 3.25 | AE20: 3.3 | AF20: 3.35 | AG20: 3.4 | AH20: 3.45 | AI20: 3.5 | AJ20: 3.55 | AK20: 3.6 | AL20: 3.65 | AM20: 3.7 | AN20: 3.75 | AO20: 3.8 | AP20: 3.85 | AQ20: 3.9 | AR20: 3.95 | AS20: 4 | AT20: 4.05 | AU20: 4.1 | AV20: 4.15 | AW20: 4.2 | AX20: 4.25 | AY20: 4.3 | AZ20: 4.35 | BA20: 4.4
B21: 9 | C21: 2 | D21: 2.05 | E21: 2.1 | F21: 2.15 | G21: 2.2 | H21: 2.25 | I21: 2.3 | J21: 2.35 | K21: 2.4 | L21: 2.45 | M21: 2.5 | N21: 2.55 | O21: 2.6 | P21: 2.65 | Q21: 2.7 | R21: 2.75 | S21: 2.8 | T21: 2.85 | U21: 2.9 | V21: 2.95 | W21: 3 | X21: 3.05 | Y21: 3.1 | Z21: 3.15 | AA21: 3.2 | AB21: 3.25 | AC21: 3.3 | AD21: 3.35 | AE21: 3.4 | AF21: 3.45 | AG21: 3.5 | AH21: 3.55 | AI21: 3.6 | AJ21: 3.65 | AK21: 3.7 | AL21: 3.75 | AM21: 3.8 | AN21: 3.85 | AO21: 3.9 | AP21: 3.95 | AQ21: 4 | AR21: 4.05 | AS21: 4.1 | AT21: 4.15 | AU21: 4.2 | AV21: 4.25 | AW21: 4.3 | AX21: 4.35 | AY21: 4.4 | AZ21: 4.45 | BA21: 4.5
B22: 10 | C22: 2.1 | D22: 2.15 | E22: 2.2 | F22: 2.25 | G22: 2.3 | H22: 2.35 | I22: 2.4 | J22: 2.45 | K22: 2.5 | L22: 2.55 | M22: 2.6 | N22: 2.65 | O22: 2.7 | P22: 2.75 | Q22: 2.8 | R22: 2.85 | S22: 2.9 | T22: 2.95 | U22: 3 | V22: 3.05 | W22: 3.1 | X22: 3.15 | Y22: 3.2 | Z22: 3.25 | AA22: 3.3 | AB22: 3.35 | AC22: 3.4 | AD22: 3.45 | AE22: 3.5 | AF22: 3.55 | AG22: 3.6 | AH22: 3.65 | AI22: 3.7 | AJ22: 3.75 | AK22: 3.8 | AL22: 3.85 | AM22: =1+$B22*0.1+0.1+AM$11*0.05 -> 3.9 | AN22: 3.95 | AO22: 4 | AP22: 4.05 | AQ22: 4.1 | AR22: 4.15 | AS22: 4.2 | AT22: 4.25 | AU22: 4.3 | AV22: 4.35 | AW22: 4.4 | AX22: 4.45 | AY22: 4.5 | AZ22: 4.55 | BA22: 4.6
B23: 11 | C23: 2.2 | D23: 2.25 | E23: 2.3 | F23: 2.35 | G23: 2.4 | H23: 2.45 | I23: 2.5 | J23: 2.55 | K23: 2.6 | L23: 2.65 | M23: 2.7 | N23: 2.75 | O23: 2.8 | P23: 2.85 | Q23: 2.9 | R23: 2.95 | S23: 3 | T23: 3.05 | U23: 3.1 | V23: 3.15 | W23: 3.2 | X23: 3.25 | Y23: 3.3 | Z23: 3.35 | AA23: 3.4 | AB23: 3.45 | AC23: 3.5 | AD23: 3.55 | AE23: 3.6 | AF23: 3.65 | AG23: 3.7 | AH23: 3.75 | AI23: 3.8 | AJ23: 3.85 | AK23: 3.9 | AL23: 3.95 | AM23: 4 | AN23: 4.05 | AO23: 4.1 | AP23: 4.15 | AQ23: 4.2 | AR23: 4.25 | AS23: 4.3 | AT23: 4.35 | AU23: 4.4 | AV23: 4.45 | AW23: 4.5 | AX23: 4.55 | AY23: 4.6 | AZ23: 4.65 | BA23: 4.7
B24: 12 | C24: 2.3 | D24: 2.35 | E24: 2.4 | F24: 2.45 | G24: 2.5 | H24: 2.55 | I24: 2.6 | J24: 2.65 | K24: 2.7 | L24: 2.75 | M24: 2.8 | N24: 2.85 | O24: 2.9 | P24: 2.95 | Q24: 3 | R24: 3.05 | S24: 3.1 | T24: 3.15 | U24: 3.2 | V24: 3.25 | W24: 3.3 | X24: 3.35 | Y24: 3.4 | Z24: 3.45 | AA24: 3.5 | AB24: 3.55 | AC24: 3.6 | AD24: 3.65 | AE24: 3.7 | AF24: 3.75 | AG24: 3.8 | AH24: 3.85 | AI24: 3.9 | AJ24: 3.95 | AK24: 4 | AL24: 4.05 | AM24: 4.1 | AN24: 4.15 | AO24: 4.2 | AP24: 4.25 | AQ24: 4.3 | AR24: 4.35 | AS24: 4.4 | AT24: 4.45 | AU24: 4.5 | AV24: 4.55 | AW24: 4.6 | AX24: 4.65 | AY24: 4.7 | AZ24: 4.75 | BA24: 4.8
B25: 13 | C25: 2.4 | D25: 2.45 | E25: 2.5 | F25: 2.55 | G25: 2.6 | H25: 2.65 | I25: 2.7 | J25: 2.75 | K25: 2.8 | L25: 2.85 | M25: 2.9 | N25: 2.95 | O25: 3 | P25: 3.05 | Q25: 3.1 | R25: 3.15 | S25: 3.2 | T25: 3.25 | U25: 3.3 | V25: 3.35 | W25: 3.4 | X25: 3.45 | Y25: 3.5 | Z25: 3.55 | AA25: 3.6 | AB25: 3.65 | AC25: 3.7 | AD25: 3.75 | AE25: 3.8 | AF25: 3.85 | AG25: 3.9 | AH25: 3.95 | AI25: 4 | AJ25: 4.05 | AK25: 4.1 | AL25: 4.15 | AM25: 4.2 | AN25: 4.25 | AO25: 4.3 | AP25: 4.35 | AQ25: 4.4 | AR25: 4.45 | AS25: 4.5 | AT25: 4.55 | AU25: 4.6 | AV25: 4.65 | AW25: 4.7 | AX25: 4.75 | AY25: 4.8 | AZ25: 4.85 | BA25: 4.9
B26: 14 | C26: 2.5 | D26: 2.55 | E26: 2.6 | F26: 2.65 | G26: 2.7 | H26: 2.75 | I26: 2.8 | J26: 2.85 | K26: 2.9 | L26: 2.95 | M26: 3 | N26: 3.05 | O26: 3.1 | P26: 3.15 | Q26: 3.2 | R26: 3.25 | S26: 3.3 | T26: 3.35 | U26: 3.4 | V26: 3.45 | W26: 3.5 | X26: 3.55 | Y26: 3.6 | Z26: 3.65 | AA26: 3.7 | AB26: 3.75 | AC26: 3.8 | AD26: 3.85 | AE26: 3.9 | AF26: 3.95 | AG26: 4 | AH26: 4.05 | AI26: 4.1 | AJ26: 4.15 | AK26: 4.2 | AL26: 4.25 | AM26: 4.3 | AN26: 4.35 | AO26: 4.4 | AP26: 4.45 | AQ26: 4.5 | AR26: 4.55 | AS26: 4.6 | AT26: 4.65 | AU26: 4.7 | AV26: 4.75 | AW26: 4.8 | AX26: 4.85 | AY26: 4.9 | AZ26: 4.95 | BA26: 5
B27: 15 | C27: 2.6 | D27: 2.65 | E27: 2.7 | F27: 2.75 | G27: 2.8 | H27: 2.85 | I27: 2.9 | J27: 2.95 | K27: 3 | L27: 3.05 | M27: 3.1 | N27: 3.15 | O27: 3.2 | P27: 3.25 | Q27: 3.3 | R27: 3.35 | S27: 3.4 | T27: 3.45 | U27: 3.5 | V27: 3.55 | W27: 3.6 | X27: 3.65 | Y27: 3.7 | Z27: 3.75 | AA27: 3.8 | AB27: 3.85 | AC27: 3.9 | AD27: 3.95 | AE27: 4 | AF27: 4.05 | AG27: 4.1 | AH27: 4.15 | AI27: 4.2 | AJ27: 4.25 | AK27: 4.3 | AL27: 4.35 | AM27: 4.4 | AN27: 4.45 | AO27: 4.5 | AP27: 4.55 | AQ27: 4.6 | AR27: 4.65 | AS27: 4.7 | AT27: 4.75 | AU27: 4.8 | AV27: 4.85 | AW27: =1+$B27*0.1+0.1+AW$11*0.05 -> 4.9 | AX27: 4.95 | AY27: 5 | AZ27: 5.05 | BA27: 5.1
B28: 16 | C28: 2.7 | D28: 2.75 | E28: 2.8 | F28: 2.85 | G28: 2.9 | H28: 2.95 | I28: 3 | J28: 3.05 | K28: 3.1 | L28: 3.15 | M28: 3.2 | N28: 3.25 | O28: 3.3 | P28: 3.35 | Q28: 3.4 | R28: 3.45 | S28: 3.5 | T28: 3.55 | U28: 3.6 | V28: 3.65 | W28: 3.7 | X28: 3.75 | Y28: 3.8 | Z28: 3.85 | AA28: 3.9 | AB28: 3.95 | AC28: 4 | AD28: 4.05 | AE28: 4.1 | AF28: 4.15 | AG28: 4.2 | AH28: 4.25 | AI28: 4.3 | AJ28: 4.35 | AK28: 4.4 | AL28: 4.45 | AM28: 4.5 | AN28: 4.55 | AO28: 4.6 | AP28: 4.65 | AQ28: 4.7 | AR28: 4.75 | AS28: 4.8 | AT28: 4.85 | AU28: 4.9 | AV28: 4.95 | AW28: 5 | AX28: 5.05 | AY28: 5.1 | AZ28: 5.15 | BA28: 5.2
B29: 17 | C29: 2.8 | D29: 2.85 | E29: 2.9 | F29: 2.95 | G29: 3 | H29: 3.05 | I29: 3.1 | J29: 3.15 | K29: 3.2 | L29: 3.25 | M29: 3.3 | N29: 3.35 | O29: 3.4 | P29: 3.45 | Q29: 3.5 | R29: 3.55 | S29: 3.6 | T29: 3.65 | U29: 3.7 | V29: 3.75 | W29: 3.8 | X29: 3.85 | Y29: 3.9 | Z29: 3.95 | AA29: 4 | AB29: 4.05 | AC29: 4.1 | AD29: 4.15 | AE29: 4.2 | AF29: 4.25 | AG29: 4.3 | AH29: 4.35 | AI29: 4.4 | AJ29: 4.45 | AK29: 4.5 | AL29: 4.55 | AM29: 4.6 | AN29: 4.65 | AO29: 4.7 | AP29: 4.75 | AQ29: 4.8 | AR29: 4.85 | AS29: 4.9 | AT29: 4.95 | AU29: 5 | AV29: 5.05 | AW29: 5.1 | AX29: 5.15 | AY29: 5.2 | AZ29: 5.25 | BA29: 5.3
B30: 18 | C30: 2.9 | D30: 2.95 | E30: 3 | F30: 3.05 | G30: 3.1 | H30: 3.15 | I30: 3.2 | J30: 3.25 | K30: 3.3 | L30: 3.35 | M30: 3.4 | N30: 3.45 | O30: 3.5 | P30: 3.55 | Q30: 3.6 | R30: 3.65 | S30: 3.7 | T30: 3.75 | U30: 3.8 | V30: 3.85 | W30: 3.9 | X30: 3.95 | Y30: 4 | Z30: 4.05 | AA30: 4.1 | AB30: 4.15 | AC30: 4.2 | AD30: 4.25 | AE30: 4.3 | AF30: 4.35 | AG30: 4.4 | AH30: 4.45 | AI30: 4.5 | AJ30: 4.55 | AK30: 4.6 | AL30: 4.65 | AM30: 4.7 | AN30: 4.75 | AO30: 4.8 | AP30: 4.85 | AQ30: 4.9 | AR30: 4.95 | AS30: 5 | AT30: 5.05 | AU30: 5.1 | AV30: 5.15 | AW30: 5.2 | AX30: 5.25 | AY30: 5.3 | AZ30: 5.35 | BA30: 5.4
B31: 19 | C31: 3 | D31: 3.05 | E31: 3.1 | F31: 3.15 | G31: 3.2 | H31: 3.25 | I31: 3.3 | J31: 3.35 | K31: 3.4 | L31: 3.45 | M31: 3.5 | N31: 3.55 | O31: 3.6 | P31: 3.65 | Q31: 3.7 | R31: 3.75 | S31: 3.8 | T31: 3.85 | U31: 3.9 | V31: 3.95 | W31: 4 | X31: 4.05 | Y31: 4.1 | Z31: 4.15 | AA31: 4.2 | AB31: 4.25 | AC31: 4.3 | AD31: 4.35 | AE31: 4.4 | AF31: 4.45 | AG31: 4.5 | AH31: 4.55 | AI31: 4.6 | AJ31: 4.65 | AK31: 4.7 | AL31: 4.75 | AM31: 4.8 | AN31: 4.85 | AO31: 4.9 | AP31: 4.95 | AQ31: 5 | AR31: 5.05 | AS31: 5.1 | AT31: 5.15 | AU31: 5.2 | AV31: 5.25 | AW31: 5.3 | AX31: 5.35 | AY31: 5.4 | AZ31: 5.45 | BA31: 5.5
B32: 20 | C32: 3.1 | D32: 3.15 | E32: 3.2 | F32: 3.25 | G32: 3.3 | H32: 3.35 | I32: 3.4 | J32: 3.45 | K32: 3.5 | L32: 3.55 | M32: 3.6 | N32: 3.65 | O32: 3.7 | P32: 3.75 | Q32: 3.8 | R32: 3.85 | S32: 3.9 | T32: 3.95 | U32: 4 | V32: 4.05 | W32: 4.1 | X32: 4.15 | Y32: 4.2 | Z32: 4.25 | AA32: 4.3 | AB32: 4.35 | AC32: 4.4 | AD32: 4.45 | AE32: 4.5 | AF32: 4.55 | AG32: 4.6 | AH32: 4.65 | AI32: 4.7 | AJ32: 4.75 | AK32: 4.8 | AL32: 4.85 | AM32: 4.9 | AN32: 4.95 | AO32: 5 | AP32: 5.05 | AQ32: 5.1 | AR32: 5.15 | AS32: 5.2 | AT32: 5.25 | AU32: 5.3 | AV32: 5.35 | AW32: 5.4 | AX32: 5.45 | AY32: 5.5 | AZ32: 5.55 | BA32: 5.6
B33: 21 | C33: 3.2 | D33: 3.25 | E33: 3.3 | F33: 3.35 | G33: 3.4 | H33: 3.45 | I33: 3.5 | J33: =1+$B33*0.1+0.1+J$11*0.05 -> 3.55 | K33: 3.6 | L33: 3.65 | M33: 3.7 | N33: 3.75 | O33: 3.8 | P33: 3.85 | Q33: 3.9 | R33: 3.95 | S33: 4 | T33: 4.05 | U33: 4.1 | V33: 4.15 | W33: 4.2 | X33: 4.25 | Y33: 4.3 | Z33: 4.35 | AA33: 4.4 | AB33: 4.45 | AC33: 4.5 | AD33: 4.55 | AE33: 4.6 | AF33: 4.65 | AG33: 4.7 | AH33: 4.75 | AI33: 4.8 | AJ33: 4.85 | AK33: 4.9 | AL33: 4.95 | AM33: 5 | AN33: 5.05 | AO33: 5.1 | AP33: 5.15 | AQ33: 5.2 | AR33: 5.25 | AS33: 5.3 | AT33: 5.35 | AU33: 5.4 | AV33: 5.45 | AW33: 5.5 | AX33: 5.55 | AY33: 5.6 | AZ33: 5.65 | BA33: 5.7
B34: 22 | C34: 3.3 | D34: 3.35 | E34: 3.4 | F34: 3.45 | G34: 3.5 | H34: 3.55 | I34: 3.6 | J34: 3.65 | K34: 3.7 | L34: 3.75 | M34: 3.8 | N34: 3.85 | O34: 3.9 | P34: 3.95 | Q34: 4 | R34: 4.05 | S34: 4.1 | T34: 4.15 | U34: 4.2 | V34: 4.25 | W34: 4.3 | X34: 4.35 | Y34: 4.4 | Z34: 4.45 | AA34: 4.5 | AB34: 4.55 | AC34: 4.6 | AD34: 4.65 | AE34: 4.7 | AF34: 4.75 | AG34: 4.8 | AH34: 4.85 | AI34: 4.9 | AJ34: 4.95 | AK34: 5 | AL34: 5.05 | AM34: 5.1 | AN34: 5.15 | AO34: 5.2 | AP34: 5.25 | AQ34: 5.3 | AR34: 5.35 | AS34: 5.4 | AT34: 5.45 | AU34: 5.5 | AV34: 5.55 | AW34: 5.6 | AX34: 5.65 | AY34: 5.7 | AZ34: 5.75 | BA34: 5.8
B35: 23 | C35: 3.4 | D35: 3.45 | E35: 3.5 | F35: 3.55 | G35: 3.6 | H35: 3.65 | I35: 3.7 | J35: 3.75 | K35: 3.8 | L35: 3.85 | M35: 3.9 | N35: 3.95 | O35: 4 | P35: 4.05 | Q35: 4.1 | R35: 4.15 | S35: 4.2 | T35: 4.25 | U35: 4.3 | V35: 4.35 | W35: 4.4 | X35: 4.45 | Y35: 4.5 | Z35: 4.55 | AA35: 4.6 | AB35: 4.65 | AC35: 4.7 | AD35: 4.75 | AE35: 4.8 | AF35: 4.85 | AG35: 4.9 | AH35: 4.95 | AI35: 5 | AJ35: 5.05 | AK35: 5.1 | AL35: 5.15 | AM35: 5.2 | AN35: 5.25 | AO35: 5.3 | AP35: 5.35 | AQ35: 5.4 | AR35: 5.45 | AS35: 5.5 | AT35: 5.55 | AU35: 5.6 | AV35: 5.65 | AW35: 5.7 | AX35: 5.75 | AY35: 5.8 | AZ35: 5.85 | BA35: 5.9
B36: 24 | C36: 3.5 | D36: 3.55 | E36: 3.6 | F36: 3.65 | G36: 3.7 | H36: 3.75 | I36: 3.8 | J36: 3.85 | K36: 3.9 | L36: 3.95 | M36: 4 | N36: 4.05 | O36: 4.1 | P36: 4.15 | Q36: 4.2 | R36: 4.25 | S36: 4.3 | T36: 4.35 | U36: 4.4 | V36: 4.45 | W36: 4.5 | X36: 4.55 | Y36: 4.6 | Z36: 4.65 | AA36: 4.7 | AB36: 4.75 | AC36: 4.8 | AD36: 4.85 | AE36: 4.9 | AF36: 4.95 | AG36: 5 | AH36: 5.05 | AI36: 5.1 | AJ36: 5.15 | AK36: 5.2 | AL36: 5.25 | AM36: 5.3 | AN36: 5.35 | AO36: 5.4 | AP36: 5.45 | AQ36: 5.5 | AR36: 5.55 | AS36: 5.6 | AT36: 5.65 | AU36: 5.7 | AV36: 5.75 | AW36: 5.8 | AX36: 5.85 | AY36: 5.9 | AZ36: 5.95 | BA36: 6
B37: 25 | C37: 3.6 | D37: 3.65 | E37: 3.7 | F37: 3.75 | G37: 3.8 | H37: 3.85 | I37: 3.9 | J37: 3.95 | K37: 4 | L37: 4.05 | M37: 4.1 | N37: 4.15 | O37: 4.2 | P37: 4.25 | Q37: 4.3 | R37: 4.35 | S37: 4.4 | T37: 4.45 | U37: 4.5 | V37: 4.55 | W37: 4.6 | X37: 4.65 | Y37: 4.7 | Z37: 4.75 | AA37: 4.8 | AB37: 4.85 | AC37: 4.9 | AD37: 4.95 | AE37: 5 | AF37: 5.05 | AG37: 5.1 | AH37: 5.15 | AI37: 5.2 | AJ37: 5.25 | AK37: 5.3 | AL37: 5.35 | AM37: 5.4 | AN37: 5.45 | AO37: 5.5 | AP37: 5.55 | AQ37: 5.6 | AR37: 5.65 | AS37: 5.7 | AT37: 5.75 | AU37: 5.8 | AV37: 5.85 | AW37: 5.9 | AX37: 5.95 | AY37: 6 | AZ37: 6.05 | BA37: 6.1
B38: 26 | C38: 3.7 | D38: 3.75 | E38: 3.8 | F38: 3.85 | G38: 3.9 | H38: 3.95 | I38: 4 | J38: 4.05 | K38: 4.1 | L38: 4.15 | M38: 4.2 | N38: 4.25 | O38: 4.3 | P38: 4.35 | Q38: 4.4 | R38: 4.45 | S38: 4.5 | T38: =1+$B38*0.1+0.1+T$11*0.05 -> 4.55 | U38: 4.6 | V38: 4.65 | W38: 4.7 | X38: 4.75 | Y38: 4.8 | Z38: 4.85 | AA38: 4.9 | AB38: 4.95 | AC38: 5 | AD38: 5.05 | AE38: 5.1 | AF38: 5.15 | AG38: 5.2 | AH38: 5.25 | AI38: 5.3 | AJ38: 5.35 | AK38: 5.4 | AL38: 5.45 | AM38: 5.5 | AN38: 5.55 | AO38: 5.6 | AP38: 5.65 | AQ38: 5.7 | AR38: 5.75 | AS38: 5.8 | AT38: 5.85 | AU38: 5.9 | AV38: 5.95 | AW38: 6 | AX38: 6.05 | AY38: 6.1 | AZ38: 6.15 | BA38: 6.2
B39: 27 | C39: 3.8 | D39: 3.85 | E39: 3.9 | F39: 3.95 | G39: 4 | H39: 4.05 | I39: 4.1 | J39: 4.15 | K39: 4.2 | L39: 4.25 | M39: 4.3 | N39: 4.35 | O39: 4.4 | P39: 4.45 | Q39: 4.5 | R39: 4.55 | S39: 4.6 | T39: 4.65 | U39: 4.7 | V39: 4.75 | W39: 4.8 | X39: 4.85 | Y39: 4.9 | Z39: 4.95 | AA39: 5 | AB39: 5.05 | AC39: 5.1 | AD39: 5.15 | AE39: 5.2 | AF39: 5.25 | AG39: 5.3 | AH39: 5.35 | AI39: 5.4 | AJ39: 5.45 | AK39: 5.5 | AL39: 5.55 | AM39: 5.6 | AN39: 5.65 | AO39: 5.7 | AP39: 5.75 | AQ39: 5.8 | AR39: 5.85 | AS39: 5.9 | AT39: 5.95 | AU39: 6 | AV39: 6.05 | AW39: 6.1 | AX39: 6.15 | AY39: 6.2 | AZ39: 6.25 | BA39: 6.3
B40: 28 | C40: 3.9 | D40: 3.95 | E40: 4 | F40: 4.05 | G40: 4.1 | H40: 4.15 | I40: 4.2 | J40: 4.25 | K40: 4.3 | L40: 4.35 | M40: 4.4 | N40: 4.45 | O40: 4.5 | P40: 4.55 | Q40: 4.6 | R40: 4.65 | S40: 4.7 | T40: 4.75 | U40: 4.8 | V40: 4.85 | W40: 4.9 | X40: 4.95 | Y40: 5 | Z40: 5.05 | AA40: 5.1 | AB40: 5.15 | AC40: 5.2 | AD40: 5.25 | AE40: 5.3 | AF40: 5.35 | AG40: 5.4 | AH40: 5.45 | AI40: 5.5 | AJ40: 5.55 | AK40: 5.6 | AL40: 5.65 | AM40: 5.7 | AN40: 5.75 | AO40: 5.8 | AP40: 5.85 | AQ40: 5.9 | AR40: 5.95 | AS40: 6 | AT40: 6.05 | AU40: 6.1 | AV40: 6.15 | AW40: 6.2 | AX40: 6.25 | AY40: 6.3 | AZ40: 6.35 | BA40: 6.4
B41: 29 | C41: 4 | D41: 4.05 | E41: 4.1 | F41: 4.15 | G41: 4.2 | H41: 4.25 | I41: 4.3 | J41: 4.35 | K41: 4.4 | L41: 4.45 | M41: 4.5 | N41: 4.55 | O41: 4.6 | P41: 4.65 | Q41: 4.7 | R41: 4.75 | S41: 4.8 | T41: 4.85 | U41: 4.9 | V41: 4.95 | W41: 5 | X41: 5.05 | Y41: 5.1 | Z41: 5.15 | AA41: 5.2 | AB41: 5.25 | AC41: 5.3 | AD41: 5.35 | AE41: 5.4 | AF41: 5.45 | AG41: 5.5 | AH41: 5.55 | AI41: 5.6 | AJ41: 5.65 | AK41: 5.7 | AL41: 5.75 | AM41: 5.8 | AN41: 5.85 | AO41: 5.9 | AP41: 5.95 | AQ41: 6 | AR41: 6.05 | AS41: 6.1 | AT41: 6.15 | AU41: 6.2 | AV41: 6.25 | AW41: 6.3 | AX41: 6.35 | AY41: 6.4 | AZ41: 6.45 | BA41: 6.5
B42: 30 | C42: 4.1 | D42: 4.15 | E42: 4.2 | F42: 4.25 | G42: 4.3 | H42: 4.35 | I42: 4.4 | J42: 4.45 | K42: 4.5 | L42: 4.55 | M42: 4.6 | N42: 4.65 | O42: 4.7 | P42: 4.75 | Q42: 4.8 | R42: 4.85 | S42: 4.9 | T42: 4.95 | U42: 5 | V42: 5.05 | W42: 5.1 | X42: 5.15 | Y42: 5.2 | Z42: 5.25 | AA42: 5.3 | AB42: 5.35 | AC42: 5.4 | AD42: 5.45 | AE42: 5.5 | AF42: 5.55 | AG42: 5.6 | AH42: 5.65 | AI42: 5.7 | AJ42: 5.75 | AK42: 5.8 | AL42: 5.85 | AM42: 5.9 | AN42: 5.95 | AO42: 6 | AP42: 6.05 | AQ42: 6.1 | AR42: 6.15 | AS42: 6.2 | AT42: 6.25 | AU42: 6.3 | AV42: 6.35 | AW42: 6.4 | AX42: 6.45 | AY42: 6.5 | AZ42: 6.55 | BA42: 6.6
B43: 31 | C43: 4.2 | D43: 4.25 | E43: 4.3 | F43: 4.35 | G43: 4.4 | H43: 4.45 | I43: 4.5 | J43: 4.55 | K43: 4.6 | L43: 4.65 | M43: 4.7 | N43: 4.75 | O43: 4.8 | P43: 4.85 | Q43: 4.9 | R43: 4.95 | S43: 5 | T43: 5.05 | U43: 5.1 | V43: 5.15 | W43: 5.2 | X43: 5.25 | Y43: 5.3 | Z43: 5.35 | AA43: 5.4 | AB43: 5.45 | AC43: 5.5 | AD43: =1+$B43*0.1+0.1+AD$11*0.05 -> 5.55 | AE43: 5.6 | AF43: 5.65 | AG43: 5.7 | AH43: 5.75 | AI43: 5.8 | AJ43: 5.85 | AK43: 5.9 | AL43: 5.95 | AM43: 6 | AN43: 6.05 | AO43: 6.1 | AP43: 6.15 | AQ43: 6.2 | AR43: 6.25 | AS43: 6.3 | AT43: 6.35 | AU43: 6.4 | AV43: 6.45 | AW43: 6.5 | AX43: 6.55 | AY43: 6.6 | AZ43: 6.65 | BA43: 6.7
B44: 32 | C44: =1+$B44*0.1+0.1+C$11*0.05 -> 4.3 | D44: 4.35 | E44: 4.4 | F44: 4.45 | G44: 4.5 | H44: 4.55 | I44: 4.6 | J44: 4.65 | K44: 4.7 | L44: 4.75 | M44: 4.8 | N44: 4.85 | O44: 4.9 | P44: 4.95 | Q44: 5 | R44: 5.05 | S44: 5.1 | T44: 5.15 | U44: 5.2 | V44: 5.25 | W44: 5.3 | X44: 5.35 | Y44: 5.4 | Z44: 5.45 | AA44: 5.5 | AB44: 5.55 | AC44: 5.6 | AD44: 5.65 | AE44: 5.7 | AF44: 5.75 | AG44: 5.8 | AH44: 5.85 | AI44: 5.9 | AJ44: 5.95 | AK44: 6 | AL44: 6.05 | AM44: 6.1 | AN44: 6.15 | AO44: 6.2 | AP44: 6.25 | AQ44: 6.3 | AR44: 6.35 | AS44: 6.4 | AT44: 6.45 | AU44: 6.5 | AV44: 6.55 | AW44: 6.6 | AX44: 6.65 | AY44: 6.7 | AZ44: 6.75 | BA44: 6.8
B45: 33 | C45: 4.4 | D45: 4.45 | E45: 4.5 | F45: 4.55 | G45: 4.6 | H45: 4.65 | I45: 4.7 | J45: 4.75 | K45: 4.8 | L45: 4.85 | M45: 4.9 | N45: 4.95 | O45: 5 | P45: 5.05 | Q45: 5.1 | R45: 5.15 | S45: 5.2 | T45: 5.25 | U45: 5.3 | V45: 5.35 | W45: 5.4 | X45: 5.45 | Y45: 5.5 | Z45: 5.55 | AA45: 5.6 | AB45: 5.65 | AC45: 5.7 | AD45: 5.75 | AE45: 5.8 | AF45: 5.85 | AG45: 5.9 | AH45: 5.95 | AI45: 6 | AJ45: 6.05 | AK45: 6.1 | AL45: 6.15 | AM45: 6.2 | AN45: 6.25 | AO45: 6.3 | AP45: 6.35 | AQ45: 6.4 | AR45: 6.45 | AS45: 6.5 | AT45: 6.55 | AU45: 6.6 | AV45: 6.65 | AW45: 6.7 | AX45: 6.75 | AY45: 6.8 | AZ45: 6.85 | BA45: 6.9
B46: 34 | C46: 4.5 | D46: 4.55 | E46: 4.6 | F46: 4.65 | G46: 4.7 | H46: 4.75 | I46: 4.8 | J46: 4.85 | K46: 4.9 | L46: 4.95 | M46: 5 | N46: 5.05 | O46: 5.1 | P46: 5.15 | Q46: 5.2 | R46: 5.25 | S46: 5.3 | T46: 5.35 | U46: 5.4 | V46: 5.45 | W46: 5.5 | X46: 5.55 | Y46: 5.6 | Z46: 5.65 | AA46: 5.7 | AB46: 5.75 | AC46: 5.8 | AD46: 5.85 | AE46: 5.9 | AF46: 5.95 | AG46: 6 | AH46: 6.05 | AI46: 6.1 | AJ46: 6.15 | AK46: 6.2 | AL46: 6.25 | AM46: 6.3 | AN46: 6.35 | AO46: 6.4 | AP46: 6.45 | AQ46: 6.5 | AR46: 6.55 | AS46: 6.6 | AT46: 6.65 | AU46: 6.7 | AV46: 6.75 | AW46: 6.8 | AX46: 6.85 | AY46: 6.9 | AZ46: 6.95 | BA46: 7
B47: 35 | C47: 4.6 | D47: 4.65 | E47: 4.7 | F47: 4.75 | G47: 4.8 | H47: 4.85 | I47: 4.9 | J47: 4.95 | K47: 5 | L47: 5.05 | M47: 5.1 | N47: 5.15 | O47: 5.2 | P47: 5.25 | Q47: 5.3 | R47: 5.35 | S47: 5.4 | T47: 5.45 | U47: 5.5 | V47: 5.55 | W47: 5.6 | X47: 5.65 | Y47: 5.7 | Z47: 5.75 | AA47: 5.8 | AB47: 5.85 | AC47: 5.9 | AD47: 5.95 | AE47: 6 | AF47: 6.05 | AG47: 6.1 | AH47: 6.15 | AI47: 6.2 | AJ47: 6.25 | AK47: 6.3 | AL47: 6.35 | AM47: 6.4 | AN47: 6.45 | AO47: 6.5 | AP47: 6.55 | AQ47: 6.6 | AR47: 6.65 | AS47: 6.7 | AT47: 6.75 | AU47: 6.8 | AV47: 6.85 | AW47: 6.9 | AX47: 6.95 | AY47: 7 | AZ47: 7.05 | BA47: 7.1
B48: 36 | C48: 4.7 | D48: 4.75 | E48: 4.8 | F48: 4.85 | G48: 4.9 | H48: 4.95 | I48: 5 | J48: 5.05 | K48: 5.1 | L48: 5.15 | M48: 5.2 | N48: 5.25 | O48: 5.3 | P48: 5.35 | Q48: 5.4 | R48: 5.45 | S48: 5.5 | T48: 5.55 | U48: 5.6 | V48: 5.65 | W48: 5.7 | X48: 5.75 | Y48: 5.8 | Z48: 5.85 | AA48: 5.9 | AB48: 5.95 | AC48: 6 | AD48: 6.05 | AE48: 6.1 | AF48: 6.15 | AG48: 6.2 | AH48: 6.25 | AI48: 6.3 | AJ48: 6.35 | AK48: 6.4 | AL48: 6.45 | AM48: 6.5 | AN48: =1+$B48*0.1+0.1+AN$11*0.05 -> 6.55 | AO48: 6.6 | AP48: 6.65 | AQ48: 6.7 | AR48: 6.75 | AS48: 6.8 | AT48: 6.85 | AU48: 6.9 | AV48: 6.95 | AW48: 7 | AX48: 7.05 | AY48: 7.1 | AZ48: 7.15 | BA48: 7.2
B49: 37 | C49: 4.8 | D49: 4.85 | E49: 4.9 | F49: 4.95 | G49: 5 | H49: 5.05 | I49: 5.1 | J49: 5.15 | K49: 5.2 | L49: 5.25 | M49: 5.3 | N49: 5.35 | O49: 5.4 | P49: 5.45 | Q49: 5.5 | R49: 5.55 | S49: 5.6 | T49: 5.65 | U49: 5.7 | V49: 5.75 | W49: 5.8 | X49: 5.85 | Y49: 5.9 | Z49: 5.95 | AA49: 6 | AB49: 6.05 | AC49: 6.1 | AD49: 6.15 | AE49: 6.2 | AF49: 6.25 | AG49: 6.3 | AH49: 6.35 | AI49: 6.4 | AJ49: 6.45 | AK49: 6.5 | AL49: 6.55 | AM49: 6.6 | AN49: 6.65 | AO49: 6.7 | AP49: 6.75 | AQ49: 6.8 | AR49: 6.85 | AS49: 6.9 | AT49: 6.95 | AU49: 7 | AV49: 7.05 | AW49: 7.1 | AX49: 7.15 | AY49: 7.2 | AZ49: 7.25 | BA49: 7.3
B50: 38 | C50: 4.9 | D50: 4.95 | E50: 5 | F50: 5.05 | G50: 5.1 | H50: 5.15 | I50: 5.2 | J50: 5.25 | K50: 5.3 | L50: 5.35 | M50: 5.4 | N50: 5.45 | O50: 5.5 | P50: 5.55 | Q50: 5.6 | R50: 5.65 | S50: 5.7 | T50: 5.75 | U50: 5.8 | V50: 5.85 | W50: 5.9 | X50: 5.95 | Y50: 6 | Z50: 6.05 | AA50: 6.1 | AB50: 6.15 | AC50: 6.2 | AD50: 6.25 | AE50: 6.3 | AF50: 6.35 | AG50: 6.4 | AH50: 6.45 | AI50: 6.5 | AJ50: 6.55 | AK50: 6.6 | AL50: 6.65 | AM50: 6.7 | AN50: 6.75 | AO50: 6.8 | AP50: 6.85 | AQ50: 6.9 | AR50: 6.95 | AS50: 7 | AT50: 7.05 | AU50: 7.1 | AV50: 7.15 | AW50: 7.2 | AX50: 7.25 | AY50: 7.3 | AZ50: 7.35 | BA50: 7.4
B51: 39 | C51: 5 | D51: 5.05 | E51: 5.1 | F51: 5.15 | G51: 5.2 | H51: 5.25 | I51: 5.3 | J51: 5.35 | K51: 5.4 | L51: 5.45 | M51: 5.5 | N51: 5.55 | O51: 5.6 | P51: 5.65 | Q51: 5.7 | R51: 5.75 | S51: 5.8 | T51: 5.85 | U51: 5.9 | V51: 5.95 | W51: 6 | X51: 6.05 | Y51: 6.1 | Z51: 6.15 | AA51: 6.2 | AB51: 6.25 | AC51: 6.3 | AD51: 6.35 | AE51: 6.4 | AF51: 6.45 | AG51: 6.5 | AH51: 6.55 | AI51: 6.6 | AJ51: 6.65 | AK51: 6.7 | AL51: 6.75 | AM51: 6.8 | AN51: 6.85 | AO51: 6.9 | AP51: 6.95 | AQ51: 7 | AR51: 7.05 | AS51: 7.1 | AT51: 7.15 | AU51: 7.2 | AV51: 7.25 | AW51: 7.3 | AX51: 7.35 | AY51: 7.4 | AZ51: 7.45 | BA51: 7.5
B52: 40 | C52: 5.1 | D52: 5.15 | E52: 5.2 | F52: 5.25 | G52: 5.3 | H52: 5.35 | I52: 5.4 | J52: 5.45 | K52: 5.5 | L52: 5.55 | M52: 5.6 | N52: 5.65 | O52: 5.7 | P52: 5.75 | Q52: 5.8 | R52: 5.85 | S52: 5.9 | T52: 5.95 | U52: 6 | V52: 6.05 | W52: 6.1 | X52: 6.15 | Y52: 6.2 | Z52: 6.25 | AA52: 6.3 | AB52: 6.35 | AC52: 6.4 | AD52: 6.45 | AE52: 6.5 | AF52: 6.55 | AG52: 6.6 | AH52: 6.65 | AI52: 6.7 | AJ52: 6.75 | AK52: 6.8 | AL52: 6.85 | AM52: 6.9 | AN52: 6.95 | AO52: 7 | AP52: 7.05 | AQ52: 7.1 | AR52: 7.15 | AS52: 7.2 | AT52: 7.25 | AU52: 7.3 | AV52: 7.35 | AW52: 7.4 | AX52: 7.45 | AY52: 7.5 | AZ52: 7.55 | BA52: 7.6
B53: 41 | C53: 5.2 | D53: 5.25 | E53: 5.3 | F53: 5.35 | G53: 5.4 | H53: 5.45 | I53: 5.5 | J53: 5.55 | K53: 5.6 | L53: 5.65 | M53: 5.7 | N53: 5.75 | O53: 5.8 | P53: 5.85 | Q53: 5.9 | R53: 5.95 | S53: 6 | T53: 6.05 | U53: 6.1 | V53: 6.15 | W53: 6.2 | X53: 6.25 | Y53: 6.3 | Z53: 6.35 | AA53: 6.4 | AB53: 6.45 | AC53: 6.5 | AD53: 6.55 | AE53: 6.6 | AF53: 6.65 | AG53: 6.7 | AH53: 6.75 | AI53: 6.8 | AJ53: 6.85 | AK53: 6.9 | AL53: 6.95 | AM53: 7 | AN53: 7.05 | AO53: 7.1 | AP53: 7.15 | AQ53: 7.2 | AR53: 7.25 | AS53: 7.3 | AT53: 7.35 | AU53: 7.4 | AV53: 7.45 | AW53: 7.5 | AX53: =1+$B53*0.1+0.1+AX$11*0.05 -> 7.55 | AY53: 7.6 | AZ53: 7.65 | BA53: 7.7
B54: 42 | C54: 5.3 | D54: 5.35 | E54: 5.4 | F54: 5.45 | G54: 5.5 | H54: 5.55 | I54: 5.6 | J54: 5.65 | K54: 5.7 | L54: 5.75 | M54: 5.8 | N54: 5.85 | O54: 5.9 | P54: 5.95 | Q54: 6 | R54: 6.05 | S54: 6.1 | T54: 6.15 | U54: 6.2 | V54: 6.25 | W54: 6.3 | X54: 6.35 | Y54: 6.4 | Z54: 6.45 | AA54: 6.5 | AB54: 6.55 | AC54: 6.6 | AD54: 6.65 | AE54: 6.7 | AF54: 6.75 | AG54: 6.8 | AH54: 6.85 | AI54: 6.9 | AJ54: 6.95 | AK54: 7 | AL54: 7.05 | AM54: 7.1 | AN54: 7.15 | AO54: 7.2 | AP54: 7.25 | AQ54: 7.3 | AR54: 7.35 | AS54: 7.4 | AT54: 7.45 | AU54: 7.5 | AV54: 7.55 | AW54: 7.6 | AX54: 7.65 | AY54: 7.7 | AZ54: 7.75 | BA54: 7.8
B55: 43 | C55: 5.4 | D55: 5.45 | E55: 5.5 | F55: 5.55 | G55: 5.6 | H55: 5.65 | I55: 5.7 | J55: 5.75 | K55: 5.8 | L55: 5.85 | M55: 5.9 | N55: 5.95 | O55: 6 | P55: 6.05 | Q55: 6.1 | R55: 6.15 | S55: 6.2 | T55: 6.25 | U55: 6.3 | V55: 6.35 | W55: 6.4 | X55: 6.45 | Y55: 6.5 | Z55: 6.55 | AA55: 6.6 | AB55: 6.65 | AC55: 6.7 | AD55: 6.75 | AE55: 6.8 | AF55: 6.85 | AG55: 6.9 | AH55: 6.95 | AI55: 7 | AJ55: 7.05 | AK55: 7.1 | AL55: 7.15 | AM55: 7.2 | AN55: 7.25 | AO55: 7.3 | AP55: 7.35 | AQ55: 7.4 | AR55: 7.45 | AS55: 7.5 | AT55: 7.55 | AU55: 7.6 | AV55: 7.65 | AW55: 7.7 | AX55: 7.75 | AY55: 7.8 | AZ55: 7.85 | BA55: 7.9
B56: 44 | C56: 5.5 | D56: 5.55 | E56: 5.6 | F56: 5.65 | G56: 5.7 | H56: 5.75 | I56: 5.8 | J56: 5.85 | K56: 5.9 | L56: 5.95 | M56: 6 | N56: 6.05 | O56: 6.1 | P56: 6.15 | Q56: 6.2 | R56: 6.25 | S56: 6.3 | T56: 6.35 | U56: 6.4 | V56: 6.45 | W56: 6.5 | X56: 6.55 | Y56: 6.6 | Z56: 6.65 | AA56: 6.7 | AB56: 6.75 | AC56: 6.8 | AD56: 6.85 | AE56: 6.9 | AF56: 6.95 | AG56: 7 | AH56: 7.05 | AI56: 7.1 | AJ56: 7.15 | AK56: 7.2 | AL56: 7.25 | AM56: 7.3 | AN56: 7.35 | AO56: 7.4 | AP56: 7.45 | AQ56: 7.5 | AR56: 7.55 | AS56: 7.6 | AT56: 7.65 | AU56: 7.7 | AV56: 7.75 | AW56: 7.8 | AX56: 7.85 | AY56: 7.9 | AZ56: 7.95 | BA56: 8
B57: 45 | C57: 5.6 | D57: 5.65 | E57: 5.7 | F57: 5.75 | G57: 5.8 | H57: 5.85 | I57: 5.9 | J57: 5.95 | K57: 6 | L57: 6.05 | M57: 6.1 | N57: 6.15 | O57: 6.2 | P57: 6.25 | Q57: 6.3 | R57: 6.35 | S57: 6.4 | T57: 6.45 | U57: 6.5 | V57: 6.55 | W57: 6.6 | X57: 6.65 | Y57: 6.7 | Z57: 6.75 | AA57: 6.8 | AB57: 6.85 | AC57: 6.9 | AD57: 6.95 | AE57: 7 | AF57: 7.05 | AG57: 7.1 | AH57: 7.15 | AI57: 7.2 | AJ57: 7.25 | AK57: 7.3 | AL57: 7.35 | AM57: 7.4 | AN57: 7.45 | AO57: 7.5 | AP57: 7.55 | AQ57: 7.6 | AR57: 7.65 | AS57: 7.7 | AT57: 7.75 | AU57: 7.8 | AV57: 7.85 | AW57: 7.9 | AX57: 7.95 | AY57: 8 | AZ57: 8.05 | BA57: 8.1
B58: 46 | C58: 5.7 | D58: 5.75 | E58: 5.8 | F58: 5.85 | G58: 5.9 | H58: 5.95 | I58: 6 | J58: 6.05 | K58: 6.1 | L58: 6.15 | M58: 6.2 | N58: 6.25 | O58: 6.3 | P58: 6.35 | Q58: 6.4 | R58: 6.45 | S58: 6.5 | T58: 6.55 | U58: 6.6 | V58: 6.65 | W58: 6.7 | X58: 6.75 | Y58: 6.8 | Z58: 6.85 | AA58: 6.9 | AB58: 6.95 | AC58: 7 | AD58: 7.05 | AE58: 7.1 | AF58: 7.15 | AG58: 7.2 | AH58: 7.25 | AI58: 7.3 | AJ58: 7.35 | AK58: 7.4 | AL58: 7.45 | AM58: 7.5 | AN58: 7.55 | AO58: 7.6 | AP58: 7.65 | AQ58: 7.7 | AR58: 7.75 | AS58: 7.8 | AT58: 7.85 | AU58: 7.9 | AV58: 7.95 | AW58: 8 | AX58: 8.05 | AY58: 8.1 | AZ58: 8.15 | BA58: 8.2
B59: 47 | C59: 5.8 | D59: 5.85 | E59: 5.9 | F59: 5.95 | G59: 6 | H59: 6.05 | I59: 6.1 | J59: 6.15 | K59: =1+$B59*0.1+0.1+K$11*0.05 -> 6.2 | L59: 6.25 | M59: 6.3 | N59: 6.35 | O59: 6.4 | P59: 6.45 | Q59: 6.5 | R59: 6.55 | S59: 6.6 | T59: 6.65 | U59: 6.7 | V59: 6.75 | W59: 6.8 | X59: 6.85 | Y59: 6.9 | Z59: 6.95 | AA59: 7 | AB59: 7.05 | AC59: 7.1 | AD59: 7.15 | AE59: 7.2 | AF59: 7.25 | AG59: 7.3 | AH59: 7.35 | AI59: 7.4 | AJ59: 7.45 | AK59: 7.5 | AL59: 7.55 | AM59: 7.6 | AN59: 7.65 | AO59: 7.7 | AP59: 7.75 | AQ59: 7.8 | AR59: 7.85 | AS59: 7.9 | AT59: 7.95 | AU59: 8 | AV59: 8.05 | AW59: 8.1 | AX59: 8.15 | AY59: 8.2 | AZ59: 8.25 | BA59: 8.3
B60: 48 | C60: 5.9 | D60: 5.95 | E60: 6 | F60: 6.05 | G60: 6.1 | H60: 6.15 | I60: 6.2 | J60: 6.25 | K60: 6.3 | L60: 6.35 | M60: 6.4 | N60: 6.45 | O60: 6.5 | P60: 6.55 | Q60: 6.6 | R60: 6.65 | S60: 6.7 | T60: 6.75 | U60: 6.8 | V60: 6.85 | W60: 6.9 | X60: 6.95 | Y60: 7 | Z60: 7.05 | AA60: 7.1 | AB60: 7.15 | AC60: 7.2 | AD60: 7.25 | AE60: 7.3 | AF60: 7.35 | AG60: 7.4 | AH60: 7.45 | AI60: 7.5 | AJ60: 7.55 | AK60: 7.6 | AL60: 7.65 | AM60: 7.7 | AN60: 7.75 | AO60: 7.8 | AP60: 7.85 | AQ60: 7.9 | AR60: 7.95 | AS60: 8 | AT60: 8.05 | AU60: 8.1 | AV60: 8.15 | AW60: 8.2 | AX60: 8.25 | AY60: 8.3 | AZ60: 8.35 | BA60: 8.4
B61: 49 | C61: 6 | D61: 6.05 | E61: 6.1 | F61: 6.15 | G61: 6.2 | H61: 6.25 | I61: 6.3 | J61: 6.35 | K61: 6.4 | L61: 6.45 | M61: 6.5 | N61: 6.55 | O61: 6.6 | P61: 6.65 | Q61: 6.7 | R61: 6.75 | S61: 6.8 | T61: 6.85 | U61: 6.9 | V61: 6.95 | W61: 7 | X61: 7.05 | Y61: 7.1 | Z61: 7.15 | AA61: 7.2 | AB61: 7.25 | AC61: 7.3 | AD61: 7.35 | AE61: 7.4 | AF61: 7.45 | AG61: 7.5 | AH61: 7.55 | AI61: 7.6 | AJ61: 7.65 | AK61: 7.7 | AL61: 7.75 | AM61: 7.8 | AN61: 7.85 | AO61: 7.9 | AP61: 7.95 | AQ61: 8 | AR61: 8.05 | AS61: 8.1 | AT61: 8.15 | AU61: 8.2 | AV61: 8.25 | AW61: 8.3 | AX61: 8.35 | AY61: 8.4 | AZ61: 8.45 | BA61: 8.5
B62: 50 | C62: 6.1 | D62: 6.15 | E62: 6.2 | F62: 6.25 | G62: 6.3 | H62: 6.35 | I62: 6.4 | J62: 6.45 | K62: 6.5 | L62: 6.55 | M62: 6.6 | N62: 6.65 | O62: 6.7 | P62: 6.75 | Q62: 6.8 | R62: 6.85 | S62: 6.9 | T62: 6.95 | U62: 7 | V62: 7.05 | W62: 7.1 | X62: 7.15 | Y62: 7.2 | Z62: 7.25 | AA62: 7.3 | AB62: 7.35 | AC62: 7.4 | AD62: 7.45 | AE62: 7.5 | AF62: 7.55 | AG62: 7.6 | AH62: 7.65 | AI62: 7.7 | AJ62: 7.75 | AK62: 7.8 | AL62: 7.85 | AM62: 7.9 | AN62: 7.95 | AO62: 8 | AP62: 8.05 | AQ62: 8.1 | AR62: 8.15 | AS62: 8.2 | AT62: 8.25 | AU62: 8.3 | AV62: 8.35 | AW62: 8.4 | AX62: 8.45 | AY62: 8.5 | AZ62: 8.55 | BA62: 8.6
C64: Loge
B65: Bouclier | C65: 0 | D65: 1 | E65: 2 | F65: 3 | G65: 4 | H65: 5 | I65: 6 | J65: 7 | K65: 8 | L65: 9 | M65: 10 | N65: 11 | O65: 12 | P65: 13 | Q65: 14 | R65: 15 | S65: 16 | T65: 17 | U65: 18 | V65: 19 | W65: 20 | X65: 21 | Y65: 22 | Z65: 23 | AA65: 24 | AB65: 25 | AC65: 26 | AD65: 27 | AE65: 28 | AF65: 29 | AG65: 30 | AH65: 31 | AI65: 32 | AJ65: 33 | AK65: 34 | AL65: 35 | AM65: 36 | AN65: 37 | AO65: 38 | AP65: 39 | AQ65: 40 | AR65: 41 | AS65: 42 | AT65: 43 | AU65: 44 | AV65: 45 | AW65: 46 | AX65: 47 | AY65: 48 | AZ65: 49 | BA65: 50
B66: 0 | C66: =1+$B66*0.1+0.3+C$11*0.15 -> 1.3 | D66: =1+$B66*0.1+0.3+D$11*0.15 -> 1.45 | E66: 1.6 | F66: 1.75 | G66: 1.9 | H66: 2.05 | I66: 2.2 | J66: 2.35 | K66: 2.5 | L66: 2.65 | M66: 2.8 | N66: 2.95 | O66: 3.1 | P66: 3.25 | Q66: 3.4 | R66: 3.55 | S66: 3.7 | T66: 3.85 | U66: 4 | V66: 4.15 | W66: 4.3 | X66: 4.45 | Y66: 4.6 | Z66: 4.75 | AA66: 4.9 | AB66: 5.05 | AC66: 5.2 | AD66: 5.35 | AE66: 5.5 | AF66: 5.65 | AG66: 5.8 | AH66: 5.95 | AI66: 6.1 | AJ66: 6.25 | AK66: 6.4 | AL66: 6.55 | AM66: 6.7 | AN66: 6.85 | AO66: 7 | AP66: 7.15 | AQ66: 7.3 | AR66: 7.45 | AS66: 7.6 | AT66: 7.75 | AU66: 7.9 | AV66: 8.05 | AW66: 8.2 | AX66: 8.35 | AY66: 8.5 | AZ66: 8.65 | BA66: 8.8
B67: 1 | C67: 1.4 | D67: =1+$B67*0.1+0.3+D$11*0.15 -> 1.55 | E67: 1.7 | F67: 1.85 | G67: 2 | H67: 2.15 | I67: 2.3 | J67: 2.45 | K67: 2.6 | L67: 2.75 | M67: 2.9 | N67: 3.05 | O67: 3.2 | P67: 3.35 | Q67: 3.5 | R67: 3.65 | S67: 3.8 | T67: 3.95 | U67: 4.1 | V67: 4.25 | W67: 4.4 | X67: 4.55 | Y67: 4.7 | Z67: 4.85 | AA67: 5 | AB67: 5.15 | AC67: 5.3 | AD67: 5.45 | AE67: 5.6 | AF67: 5.75 | AG67: 5.9 | AH67: 6.05 | AI67: 6.2 | AJ67: 6.35 | AK67: 6.5 | AL67: 6.65 | AM67: 6.8 | AN67: 6.95 | AO67: 7.1 | AP67: 7.25 | AQ67: 7.4 | AR67: 7.55 | AS67: 7.7 | AT67: 7.85 | AU67: 8 | AV67: 8.15 | AW67: 8.3 | AX67: 8.45 | AY67: 8.6 | AZ67: 8.75 | BA67: 8.9
B68: 2 | C68: 1.5 | D68: 1.65 | E68: 1.8 | F68: 1.95 | G68: 2.1 | H68: 2.25 | I68: 2.4 | J68: 2.55 | K68: 2.7 | L68: 2.85 | M68: 3 | N68: 3.15 | O68: 3.3 | P68: 3.45 | Q68: 3.6 | R68: 3.75 | S68: 3.9 | T68: 4.05 | U68: 4.2 | V68: 4.35 | W68: 4.5 | X68: 4.65 | Y68: 4.8 | Z68: 4.95 | AA68: 5.1 | AB68: 5.25 | AC68: 5.4 | AD68: 5.55 | AE68: 5.7 | AF68: 5.85 | AG68: 6 | AH68: 6.15 | AI68: 6.3 | AJ68: 6.45 | AK68: 6.6 | AL68: 6.75 | AM68: 6.9 | AN68: 7.05 | AO68: 7.2 | AP68: 7.35 | AQ68: 7.5 | AR68: 7.65 | AS68: 7.8 | AT68: 7.95 | AU68: 8.1 | AV68: 8.25 | AW68: 8.4 | AX68: 8.55 | AY68: 8.7 | AZ68: 8.85 | BA68: 9
B69: 3 | C69: 1.6 | D69: 1.75 | E69: 1.9 | F69: 2.05 | G69: 2.2 | H69: 2.35 | I69: 2.5 | J69: 2.65 | K69: 2.8 | L69: 2.95 | M69: 3.1 | N69: 3.25 | O69: 3.4 | P69: 3.55 | Q69: 3.7 | R69: 3.85 | S69: 4 | T69: 4.15 | U69: 4.3 | V69: 4.45 | W69: 4.6 | X69: 4.75 | Y69: 4.9 | Z69: 5.05 | AA69: 5.2 | AB69: 5.35 | AC69: 5.5 | AD69: 5.65 | AE69: 5.8 | AF69: 5.95 | AG69: 6.1 | AH69: 6.25 | AI69: 6.4 | AJ69: 6.55 | AK69: 6.7 | AL69: 6.85 | AM69: 7 | AN69: 7.15 | AO69: 7.3 | AP69: 7.45 | AQ69: 7.6 | AR69: 7.75 | AS69: 7.9 | AT69: 8.05 | AU69: 8.2 | AV69: 8.35 | AW69: 8.5 | AX69: 8.65 | AY69: 8.8 | AZ69: 8.95 | BA69: 9.1
B70: 4 | C70: 1.7 | D70: 1.85 | E70: 2 | F70: 2.15 | G70: 2.3 | H70: 2.45 | I70: 2.6 | J70: 2.75 | K70: 2.9 | L70: 3.05 | M70: 3.2 | N70: 3.35 | O70: 3.5 | P70: 3.65 | Q70: 3.8 | R70: 3.95 | S70: 4.1 | T70: 4.25 | U70: 4.4 | V70: 4.55 | W70: 4.7 | X70: 4.85 | Y70: 5 | Z70: 5.15 | AA70: 5.3 | AB70: 5.45 | AC70: 5.6 | AD70: 5.75 | AE70: 5.9 | AF70: 6.05 | AG70: 6.2 | AH70: 6.35 | AI70: 6.5 | AJ70: 6.65 | AK70: 6.8 | AL70: 6.95 | AM70: 7.1 | AN70: 7.25 | AO70: 7.4 | AP70: 7.55 | AQ70: 7.7 | AR70: 7.85 | AS70: 8 | AT70: 8.15 | AU70: 8.3 | AV70: 8.45 | AW70: 8.6 | AX70: 8.75 | AY70: 8.9 | AZ70: 9.05 | BA70: 9.2
B71: 5 | C71: 1.8 | D71: 1.95 | E71: 2.1 | F71: 2.25 | G71: 2.4 | H71: 2.55 | I71: 2.7 | J71: 2.85 | K71: 3 | L71: 3.15 | M71: 3.3 | N71: 3.45 | O71: 3.6 | P71: 3.75 | Q71: 3.9 | R71: 4.05 | S71: 4.2 | T71: 4.35 | U71: 4.5 | V71: 4.65 | W71: 4.8 | X71: =1+$B71*0.1+0.3+X$11*0.15 -> 4.95 | Y71: 5.1 | Z71: 5.25 | AA71: 5.4 | AB71: 5.55 | AC71: 5.7 | AD71: 5.85 | AE71: 6 | AF71: 6.15 | AG71: 6.3 | AH71: 6.45 | AI71: 6.6 | AJ71: 6.75 | AK71: 6.9 | AL71: 7.05 | AM71: 7.2 | AN71: 7.35 | AO71: 7.5 | AP71: 7.65 | AQ71: 7.8 | AR71: 7.95 | AS71: 8.1 | AT71: 8.25 | AU71: 8.4 | AV71: 8.55 | AW71: 8.7 | AX71: 8.85 | AY71: 9 | AZ71: 9.15 | BA71: 9.3
B72: 6 | C72: 1.9 | D72: 2.05 | E72: 2.2 | F72: 2.35 | G72: 2.5 | H72: 2.65 | I72: 2.8 | J72: 2.95 | K72: 3.1 | L72: 3.25 | M72: 3.4 | N72: 3.55 | O72: 3.7 | P72: 3.85 | Q72: 4 | R72: 4.15 | S72: 4.3 | T72: 4.45 | U72: 4.6 | V72: 4.75 | W72: 4.9 | X72: 5.05 | Y72: 5.2 | Z72: 5.35 | AA72: 5.5 | AB72: 5.65 | AC72: 5.8 | AD72: 5.95 | AE72: 6.1 | AF72: 6.25 | AG72: 6.4 | AH72: 6.55 | AI72: 6.7 | AJ72: 6.85 | AK72: 7 | AL72: 7.15 | AM72: 7.3 | AN72: 7.45 | AO72: 7.6 | AP72: 7.75 | AQ72: 7.9 | AR72: 8.05 | AS72: 8.2 | AT72: 8.35 | AU72: 8.5 | AV72: 8.65 | AW72: 8.8 | AX72: 8.95 | AY72: 9.1 | AZ72: 9.25 | BA72: 9.4
B73: 7 | C73: 2 | D73: 2.15 | E73: 2.3 | F73: 2.45 | G73: 2.6 | H73: 2.75 | I73: 2.9 | J73: 3.05 | K73: 3.2 | L73: 3.35 | M73: 3.5 | N73: 3.65 | O73: 3.8 | P73: 3.95 | Q73: 4.1 | R73: 4.25 | S73: 4.4 | T73: 4.55 | U73: 4.7 | V73: 4.85 | W73: 5 | X73: 5.15 | Y73: 5.3 | Z73: 5.45 | AA73: 5.6 | AB73: 5.75 | AC73: 5.9 | AD73: 6.05 | AE73: 6.2 | AF73: 6.35 | AG73: 6.5 | AH73: 6.65 | AI73: 6.8 | AJ73: 6.95 | AK73: 7.1 | AL73: 7.25 | AM73: 7.4 | AN73: 7.55 | AO73: 7.7 | AP73: 7.85 | AQ73: 8 | AR73: 8.15 | AS73: 8.3 | AT73: 8.45 | AU73: 8.6 | AV73: 8.75 | AW73: 8.9 | AX73: 9.05 | AY73: 9.2 | AZ73: 9.35 | BA73: 9.5
B74: 8 | C74: 2.1 | D74: 2.25 | E74: 2.4 | F74: 2.55 | G74: 2.7 | H74: 2.85 | I74: 3 | J74: 3.15 | K74: 3.3 | L74: 3.45 | M74: 3.6 | N74: 3.75 | O74: 3.9 | P74: 4.05 | Q74: 4.2 | R74: 4.35 | S74: 4.5 | T74: 4.65 | U74: 4.8 | V74: 4.95 | W74: 5.1 | X74: 5.25 | Y74: 5.4 | Z74: 5.55 | AA74: 5.7 | AB74: 5.85 | AC74: 6 | AD74: 6.15 | AE74: 6.3 | AF74: 6.45 | AG74: 6.6 | AH74: 6.75 | AI74: 6.9 | AJ74: 7.05 | AK74: 7.2 | AL74: 7.35 | AM74: 7.5 | AN74: 7.65 | AO74: 7.8 | AP74: 7.95 | AQ74: 8.1 | AR74: 8.25 | AS74: 8.4 | AT74: 8.55 | AU74: 8.7 | AV74: 8.85 | AW74: 9 | AX74: 9.15 | AY74: 9.3 | AZ74: 9.45 | BA74: 9.6
B75: 9 | C75: 2.2 | D75: 2.35 | E75: 2.5 | F75: 2.65 | G75: 2.8 | H75: 2.95 | I75: 3.1 | J75: 3.25 | K75: 3.4 | L75: 3.55 | M75: 3.7 | N75: 3.85 | O75: 4 | P75: 4.15 | Q75: 4.3 | R75: 4.45 | S75: 4.6 | T75: 4.75 | U75: 4.9 | V75: 5.05 | W75: 5.2 | X75: 5.35 | Y75: 5.5 | Z75: 5.65 | AA75: 5.8 | AB75: 5.95 | AC75: 6.1 | AD75: 6.25 | AE75: 6.4 | AF75: 6.55 | AG75: 6.7 | AH75: 6.85 | AI75: 7 | AJ75: 7.15 | AK75: 7.3 | AL75: 7.45 | AM75: 7.6 | AN75: 7.75 | AO75: 7.9 | AP75: 8.05 | AQ75: 8.2 | AR75: 8.35 | AS75: 8.5 | AT75: 8.65 | AU75: 8.8 | AV75: 8.95 | AW75: 9.1 | AX75: 9.25 | AY75: 9.4 | AZ75: 9.55 | BA75: 9.7
B76: 10 | C76: 2.3 | D76: 2.45 | E76: 2.6 | F76: 2.75 | G76: 2.9 | H76: 3.05 | I76: 3.2 | J76: 3.35 | K76: 3.5 | L76: 3.65 | M76: 3.8 | N76: 3.95 | O76: 4.1 | P76: 4.25 | Q76: 4.4 | R76: 4.55 | S76: 4.7 | T76: 4.85 | U76: 5 | V76: 5.15 | W76: 5.3 | X76: 5.45 | Y76: 5.6 | Z76: 5.75 | AA76: 5.9 | AB76: 6.05 | AC76: =1+$B76*0.1+0.3+AC$11*0.15 -> 6.2 | AD76: 6.35 | AE76: 6.5 | AF76: 6.65 | AG76: 6.8 | AH76: 6.95 | AI76: 7.1 | AJ76: 7.25 | AK76: 7.4 | AL76: 7.55 | AM76: 7.7 | AN76: 7.85 | AO76: 8 | AP76: 8.15 | AQ76: 8.3 | AR76: 8.45 | AS76: 8.6 | AT76: 8.75 | AU76: 8.9 | AV76: 9.05 | AW76: 9.2 | AX76: 9.35 | AY76: 9.5 | AZ76: 9.65 | BA76: 9.8
B77: 11 | C77: 2.4 | D77: 2.55 | E77: 2.7 | F77: 2.85 | G77: 3 | H77: 3.15 | I77: 3.3 | J77: 3.45 | K77: 3.6 | L77: 3.75 | M77: 3.9 | N77: 4.05 | O77: 4.2 | P77: 4.35 | Q77: 4.5 | R77: 4.65 | S77: 4.8 | T77: 4.95 | U77: 5.1 | V77: 5.25 | W77: 5.4 | X77: 5.55 | Y77: 5.7 | Z77: 5.85 | AA77: 6 | AB77: 6.15 | AC77: 6.3 | AD77: 6.45 | AE77: 6.6 | AF77: 6.75 | AG77: 6.9 | AH77: 7.05 | AI77: 7.2 | AJ77: 7.35 | AK77: 7.5 | AL77: 7.65 | AM77: 7.8 | AN77: 7.95 | AO77: 8.1 | AP77: 8.25 | AQ77: 8.4 | AR77: 8.55 | AS77: 8.7 | AT77: 8.85 | AU77: 9 | AV77: 9.15 | AW77: 9.3 | AX77: 9.45 | AY77: 9.6 | AZ77: 9.75 | BA77: 9.9
B78: 12 | C78: 2.5 | D78: 2.65 | E78: 2.8 | F78: 2.95 | G78: 3.1 | H78: 3.25 | I78: 3.4 | J78: 3.55 | K78: 3.7 | L78: 3.85 | M78: 4 | N78: 4.15 | O78: 4.3 | P78: 4.45 | Q78: 4.6 | R78: 4.75 | S78: 4.9 | T78: 5.05 | U78: 5.2 | V78: 5.35 | W78: 5.5 | X78: 5.65 | Y78: 5.8 | Z78: 5.95 | AA78: 6.1 | AB78: 6.25 | AC78: 6.4 | AD78: 6.55 | AE78: 6.7 | AF78: 6.85 | AG78: 7 | AH78: 7.15 | AI78: 7.3 | AJ78: 7.45 | AK78: 7.6 | AL78: 7.75 | AM78: 7.9 | AN78: 8.05 | AO78: 8.2 | AP78: 8.35 | AQ78: 8.5 | AR78: 8.65 | AS78: 8.8 | AT78: 8.95 | AU78: 9.1 | AV78: 9.25 | AW78: 9.4 | AX78: 9.55 | AY78: 9.7 | AZ78: 9.85 | BA78: 10
B79: 13 | C79: 2.6 | D79: 2.75 | E79: 2.9 | F79: 3.05 | G79: 3.2 | H79: 3.35 | I79: 3.5 | J79: 3.65 | K79: 3.8 | L79: 3.95 | M79: 4.1 | N79: 4.25 | O79: 4.4 | P79: 4.55 | Q79: 4.7 | R79: 4.85 | S79: 5 | T79: 5.15 | U79: 5.3 | V79: 5.45 | W79: 5.6 | X79: 5.75 | Y79: 5.9 | Z79: 6.05 | AA79: 6.2 | AB79: 6.35 | AC79: 6.5 | AD79: 6.65 | AE79: 6.8 | AF79: 6.95 | AG79: 7.1 | AH79: 7.25 | AI79: 7.4 | AJ79: 7.55 | AK79: 7.7 | AL79: 7.85 | AM79: 8 | AN79: 8.15 | AO79: 8.3 | AP79: 8.45 | AQ79: 8.6 | AR79: 8.75 | AS79: 8.9 | AT79: 9.05 | AU79: 9.2 | AV79: 9.35 | AW79: 9.5 | AX79: 9.65 | AY79: 9.8 | AZ79: 9.95 | BA79: 10.1
B80: 14 | C80: 2.7 | D80: 2.85 | E80: 3 | F80: 3.15 | G80: 3.3 | H80: 3.45 | I80: 3.6 | J80: 3.75 | K80: 3.9 | L80: 4.05 | M80: 4.2 | N80: 4.35 | O80: 4.5 | P80: 4.65 | Q80: 4.8 | R80: 4.95 | S80: 5.1 | T80: 5.25 | U80: 5.4 | V80: 5.55 | W80: 5.7 | X80: 5.85 | Y80: 6 | Z80: 6.15 | AA80: 6.3 | AB80: 6.45 | AC80: 6.6 | AD80: 6.75 | AE80: 6.9 | AF80: 7.05 | AG80: 7.2 | AH80: 7.35 | AI80: 7.5 | AJ80: 7.65 | AK80: 7.8 | AL80: 7.95 | AM80: 8.1 | AN80: 8.25 | AO80: 8.4 | AP80: 8.55 | AQ80: 8.7 | AR80: 8.85 | AS80: 9 | AT80: 9.15 | AU80: 9.3 | AV80: 9.45 | AW80: 9.6 | AX80: 9.75 | AY80: 9.9 | AZ80: 10.05 | BA80: 10.2
B81: 15 | C81: 2.8 | D81: 2.95 | E81: 3.1 | F81: 3.25 | G81: 3.4 | H81: 3.55 | I81: 3.7 | J81: 3.85 | K81: 4 | L81: 4.15 | M81: 4.3 | N81: 4.45 | O81: 4.6 | P81: 4.75 | Q81: 4.9 | R81: 5.05 | S81: 5.2 | T81: 5.35 | U81: 5.5 | V81: 5.65 | W81: 5.8 | X81: 5.95 | Y81: 6.1 | Z81: 6.25 | AA81: 6.4 | AB81: 6.55 | AC81: 6.7 | AD81: 6.85 | AE81: 7 | AF81: 7.15 | AG81: 7.3 | AH81: =1+$B81*0.1+0.3+AH$11*0.15 -> 7.45 | AI81: 7.6 | AJ81: 7.75 | AK81: 7.9 | AL81: 8.05 | AM81: 8.2 | AN81: 8.35 | AO81: 8.5 | AP81: 8.65 | AQ81: 8.8 | AR81: 8.95 | AS81: 9.1 | AT81: 9.25 | AU81: 9.4 | AV81: 9.55 | AW81: 9.7 | AX81: 9.85 | AY81: 10 | AZ81: 10.15 | BA81: 10.3
B82: 16 | C82: 2.9 | D82: 3.05 | E82: 3.2 | F82: 3.35 | G82: 3.5 | H82: 3.65 | I82: 3.8 | J82: 3.95 | K82: 4.1 | L82: 4.25 | M82: 4.4 | N82: 4.55 | O82: 4.7 | P82: 4.85 | Q82: 5 | R82: 5.15 | S82: 5.3 | T82: 5.45 | U82: 5.6 | V82: 5.75 | W82: 5.9 | X82: 6.05 | Y82: 6.2 | Z82: 6.35 | AA82: 6.5 | AB82: 6.65 | AC82: 6.8 | AD82: 6.95 | AE82: 7.1 | AF82: 7.25 | AG82: 7.4 | AH82: 7.55 | AI82: 7.7 | AJ82: 7.85 | AK82: 8 | AL82: 8.15 | AM82: 8.3 | AN82: 8.45 | AO82: 8.6 | AP82: 8.75 | AQ82: 8.9 | AR82: 9.05 | AS82: 9.2 | AT82: 9.35 | AU82: 9.5 | AV82: 9.65 | AW82: 9.8 | AX82: 9.95 | AY82: 10.1 | AZ82: 10.25 | BA82: 10.4
B83: 17 | C83: 3 | D83: 3.15 | E83: 3.3 | F83: 3.45 | G83: 3.6 | H83: 3.75 | I83: 3.9 | J83: 4.05 | K83: 4.2 | L83: 4.35 | M83: 4.5 | N83: 4.65 | O83: 4.8 | P83: 4.95 | Q83: 5.1 | R83: 5.25 | S83: 5.4 | T83: 5.55 | U83: 5.7 | V83: 5.85 | W83: 6 | X83: 6.15 | Y83: 6.3 | Z83: 6.45 | AA83: 6.6 | AB83: 6.75 | AC83: 6.9 | AD83: 7.05 | AE83: 7.2 | AF83: 7.35 | AG83: 7.5 | AH83: 7.65 | AI83: 7.8 | AJ83: 7.95 | AK83: 8.1 | AL83: 8.25 | AM83: 8.4 | AN83: 8.55 | AO83: 8.7 | AP83: 8.85 | AQ83: 9 | AR83: 9.15 | AS83: 9.3 | AT83: 9.45 | AU83: 9.6 | AV83: 9.75 | AW83: 9.9 | AX83: 10.05 | AY83: 10.2 | AZ83: 10.35 | BA83: 10.5
B84: 18 | C84: 3.1 | D84: 3.25 | E84: 3.4 | F84: 3.55 | G84: 3.7 | H84: 3.85 | I84: 4 | J84: 4.15 | K84: 4.3 | L84: 4.45 | M84: 4.6 | N84: 4.75 | O84: 4.9 | P84: 5.05 | Q84: 5.2 | R84: 5.35 | S84: 5.5 | T84: 5.65 | U84: 5.8 | V84: 5.95 | W84: 6.1 | X84: 6.25 | Y84: 6.4 | Z84: 6.55 | AA84: 6.7 | AB84: 6.85 | AC84: 7 | AD84: 7.15 | AE84: 7.3 | AF84: 7.45 | AG84: 7.6 | AH84: 7.75 | AI84: 7.9 | AJ84: 8.05 | AK84: 8.2 | AL84: 8.35 | AM84: 8.5 | AN84: 8.65 | AO84: 8.8 | AP84: 8.95 | AQ84: 9.1 | AR84: 9.25 | AS84: 9.4 | AT84: 9.55 | AU84: 9.7 | AV84: 9.85 | AW84: 10 | AX84: 10.15 | AY84: 10.3 | AZ84: 10.45 | BA84: 10.6
B85: 19 | C85: 3.2 | D85: 3.35 | E85: 3.5 | F85: 3.65 | G85: 3.8 | H85: 3.95 | I85: 4.1 | J85: 4.25 | K85: 4.4 | L85: 4.55 | M85: 4.7 | N85: 4.85 | O85: 5 | P85: 5.15 | Q85: 5.3 | R85: 5.45 | S85: 5.6 | T85: 5.75 | U85: 5.9 | V85: 6.05 | W85: 6.2 | X85: 6.35 | Y85: 6.5 | Z85: 6.65 | AA85: 6.8 | AB85: 6.95 | AC85: 7.1 | AD85: 7.25 | AE85: 7.4 | AF85: 7.55 | AG85: 7.7 | AH85: 7.85 | AI85: 8 | AJ85: 8.15 | AK85: 8.3 | AL85: 8.45 | AM85: 8.6 | AN85: 8.75 | AO85: 8.9 | AP85: 9.05 | AQ85: 9.2 | AR85: 9.35 | AS85: 9.5 | AT85: 9.65 | AU85: 9.8 | AV85: 9.95 | AW85: 10.1 | AX85: 10.25 | AY85: 10.4 | AZ85: 10.55 | BA85: 10.7
B86: 20 | C86: 3.3 | D86: 3.45 | E86: 3.6 | F86: 3.75 | G86: 3.9 | H86: 4.05 | I86: 4.2 | J86: 4.35 | K86: 4.5 | L86: 4.65 | M86: 4.8 | N86: 4.95 | O86: 5.1 | P86: 5.25 | Q86: 5.4 | R86: 5.55 | S86: 5.7 | T86: 5.85 | U86: 6 | V86: 6.15 | W86: 6.3 | X86: 6.45 | Y86: 6.6 | Z86: 6.75 | AA86: 6.9 | AB86: 7.05 | AC86: 7.2 | AD86: 7.35 | AE86: 7.5 | AF86: 7.65 | AG86: 7.8 | AH86: 7.95 | AI86: 8.1 | AJ86: 8.25 | AK86: 8.4 | AL86: 8.55 | AM86: =1+$B86*0.1+0.3+AM$11*0.15 -> 8.7 | AN86: 8.85 | AO86: 9 | AP86: 9.15 | AQ86: 9.3 | AR86: 9.45 | AS86: 9.6 | AT86: 9.75 | AU86: 9.9 | AV86: 10.05 | AW86: 10.2 | AX86: 10.35 | AY86: 10.5 | AZ86: 10.65 | BA86: 10.8
B87: 21 | C87: 3.4 | D87: 3.55 | E87: 3.7 | F87: 3.85 | G87: 4 | H87: 4.15 | I87: 4.3 | J87: 4.45 | K87: 4.6 | L87: 4.75 | M87: 4.9 | N87: 5.05 | O87: 5.2 | P87: 5.35 | Q87: 5.5 | R87: 5.65 | S87: 5.8 | T87: 5.95 | U87: 6.1 | V87: 6.25 | W87: 6.4 | X87: 6.55 | Y87: 6.7 | Z87: 6.85 | AA87: 7 | AB87: 7.15 | AC87: 7.3 | AD87: 7.45 | AE87: 7.6 | AF87: 7.75 | AG87: 7.9 | AH87: 8.05 | AI87: 8.2 | AJ87: 8.35 | AK87: 8.5 | AL87: 8.65 | AM87: 8.8 | AN87: 8.95 | AO87: 9.1 | AP87: 9.25 | AQ87: 9.4 | AR87: 9.55 | AS87: 9.7 | AT87: 9.85 | AU87: 10 | AV87: 10.15 | AW87: 10.3 | AX87: 10.45 | AY87: 10.6 | AZ87: 10.75 | BA87: 10.9
B88: 22 | C88: 3.5 | D88: 3.65 | E88: 3.8 | F88: 3.95 | G88: 4.1 | H88: 4.25 | I88: 4.4 | J88: 4.55 | K88: 4.7 | L88: 4.85 | M88: 5 | N88: 5.15 | O88: 5.3 | P88: 5.45 | Q88: 5.6 | R88: 5.75 | S88: 5.9 | T88: 6.05 | U88: 6.2 | V88: 6.35 | W88: 6.5 | X88: 6.65 | Y88: 6.8 | Z88: 6.95 | AA88: 7.1 | AB88: 7.25 | AC88: 7.4 | AD88: 7.55 | AE88: 7.7 | AF88: 7.85 | AG88: 8 | AH88: 8.15 | AI88: 8.3 | AJ88: 8.45 | AK88: 8.6 | AL88: 8.75 | AM88: 8.9 | AN88: 9.05 | AO88: 9.2 | AP88: 9.35 | AQ88: 9.5 | AR88: 9.65 | AS88: 9.8 | AT88: 9.95 | AU88: 10.1 | AV88: 10.25 | AW88: 10.4 | AX88: 10.55 | AY88: 10.7 | AZ88: 10.85 | BA88: 11
B89: 23 | C89: 3.6 | D89: 3.75 | E89: 3.9 | F89: 4.05 | G89: 4.2 | H89: 4.35 | I89: 4.5 | J89: 4.65 | K89: 4.8 | L89: 4.95 | M89: 5.1 | N89: 5.25 | O89: 5.4 | P89: 5.55 | Q89: 5.7 | R89: 5.85 | S89: 6 | T89: 6.15 | U89: 6.3 | V89: 6.45 | W89: 6.6 | X89: 6.75 | Y89: 6.9 | Z89: 7.05 | AA89: 7.2 | AB89: 7.35 | AC89: 7.5 | AD89: 7.65 | AE89: 7.8 | AF89: 7.95 | AG89: 8.1 | AH89: 8.25 | AI89: 8.4 | AJ89: 8.55 | AK89: 8.7 | AL89: 8.85 | AM89: 9 | AN89: 9.15 | AO89: 9.3 | AP89: 9.45 | AQ89: 9.6 | AR89: 9.75 | AS89: 9.9 | AT89: 10.05 | AU89: 10.2 | AV89: 10.35 | AW89: 10.5 | AX89: 10.65 | AY89: 10.8 | AZ89: 10.95 | BA89: 11.1
B90: 24 | C90: 3.7 | D90: 3.85 | E90: 4 | F90: 4.15 | G90: 4.3 | H90: 4.45 | I90: 4.6 | J90: 4.75 | K90: 4.9 | L90: 5.05 | M90: 5.2 | N90: 5.35 | O90: 5.5 | P90: 5.65 | Q90: 5.8 | R90: 5.95 | S90: 6.1 | T90: 6.25 | U90: 6.4 | V90: 6.55 | W90: 6.7 | X90: 6.85 | Y90: 7 | Z90: 7.15 | AA90: 7.3 | AB90: 7.45 | AC90: 7.6 | AD90: 7.75 | AE90: 7.9 | AF90: 8.05 | AG90: 8.2 | AH90: 8.35 | AI90: 8.5 | AJ90: 8.65 | AK90: 8.8 | AL90: 8.95 | AM90: 9.1 | AN90: 9.25 | AO90: 9.4 | AP90: 9.55 | AQ90: 9.7 | AR90: 9.85 | AS90: 10 | AT90: 10.15 | AU90: 10.3 | AV90: 10.45 | AW90: 10.6 | AX90: 10.75 | AY90: 10.9 | AZ90: 11.05 | BA90: 11.2
B91: 25 | C91: 3.8 | D91: 3.95 | E91: 4.1 | F91: 4.25 | G91: 4.4 | H91: 4.55 | I91: 4.7 | J91: 4.85 | K91: 5 | L91: 5.15 | M91: 5.3 | N91: 5.45 | O91: 5.6 | P91: 5.75 | Q91: 5.9 | R91: 6.05 | S91: 6.2 | T91: 6.35 | U91: 6.5 | V91: 6.65 | W91: 6.8 | X91: 6.95 | Y91: 7.1 | Z91: 7.25 | AA91: 7.4 | AB91: 7.55 | AC91: 7.7 | AD91: 7.85 | AE91: 8 | AF91: 8.15 | AG91: 8.3 | AH91: 8.45 | AI91: 8.6 | AJ91: 8.75 | AK91: 8.9 | AL91: 9.05 | AM91: 9.2 | AN91: 9.35 | AO91: 9.5 | AP91: 9.65 | AQ91: 9.8 | AR91: =1+$B91*0.1+0.3+AR$11*0.15 -> 9.95 | AS91: 10.1 | AT91: 10.25 | AU91: 10.4 | AV91: 10.55 | AW91: 10.7 | AX91: 10.85 | AY91: 11 | AZ91: 11.15 | BA91: 11.3
B92: 26 | C92: 3.9 | D92: 4.05 | E92: 4.2 | F92: 4.35 | G92: 4.5 | H92: 4.65 | I92: 4.8 | J92: 4.95 | K92: 5.1 | L92: 5.25 | M92: 5.4 | N92: 5.55 | O92: 5.7 | P92: 5.85 | Q92: 6 | R92: 6.15 | S92: 6.3 | T92: 6.45 | U92: 6.6 | V92: 6.75 | W92: 6.9 | X92: 7.05 | Y92: 7.2 | Z92: 7.35 | AA92: 7.5 | AB92: 7.65 | AC92: 7.8 | AD92: 7.95 | AE92: 8.1 | AF92: 8.25 | AG92: 8.4 | AH92: 8.55 | AI92: 8.7 | AJ92: 8.85 | AK92: 9 | AL92: 9.15 | AM92: 9.3 | AN92: 9.45 | AO92: 9.6 | AP92: 9.75 | AQ92: 9.9 | AR92: 10.05 | AS92: 10.2 | AT92: 10.35 | AU92: 10.5 | AV92: 10.65 | AW92: 10.8 | AX92: 10.95 | AY92: 11.1 | AZ92: 11.25 | BA92: 11.4
B93: 27 | C93: 4 | D93: 4.15 | E93: 4.3 | F93: 4.45 | G93: 4.6 | H93: 4.75 | I93: 4.9 | J93: 5.05 | K93: 5.2 | L93: 5.35 | M93: 5.5 | N93: 5.65 | O93: 5.8 | P93: 5.95 | Q93: 6.1 | R93: 6.25 | S93: 6.4 | T93: 6.55 | U93: 6.7 | V93: 6.85 | W93: 7 | X93: 7.15 | Y93: 7.3 | Z93: 7.45 | AA93: 7.6 | AB93: 7.75 | AC93: 7.9 | AD93: 8.05 | AE93: 8.2 | AF93: 8.35 | AG93: 8.5 | AH93: 8.65 | AI93: 8.8 | AJ93: 8.95 | AK93: 9.1 | AL93: 9.25 | AM93: 9.4 | AN93: 9.55 | AO93: 9.7 | AP93: 9.85 | AQ93: 10 | AR93: 10.15 | AS93: 10.3 | AT93: 10.45 | AU93: 10.6 | AV93: 10.75 | AW93: 10.9 | AX93: 11.05 | AY93: 11.2 | AZ93: 11.35 | BA93: 11.5
B94: 28 | C94: 4.1 | D94: 4.25 | E94: 4.4 | F94: 4.55 | G94: 4.7 | H94: 4.85 | I94: 5 | J94: 5.15 | K94: 5.3 | L94: 5.45 | M94: 5.6 | N94: 5.75 | O94: 5.9 | P94: 6.05 | Q94: 6.2 | R94: 6.35 | S94: 6.5 | T94: 6.65 | U94: 6.8 | V94: 6.95 | W94: 7.1 | X94: 7.25 | Y94: 7.4 | Z94: 7.55 | AA94: 7.7 | AB94: 7.85 | AC94: 8 | AD94: 8.15 | AE94: 8.3 | AF94: 8.45 | AG94: 8.6 | AH94: 8.75 | AI94: 8.9 | AJ94: 9.05 | AK94: 9.2 | AL94: 9.35 | AM94: 9.5 | AN94: 9.65 | AO94: 9.8 | AP94: 9.95 | AQ94: 10.1 | AR94: 10.25 | AS94: 10.4 | AT94: 10.55 | AU94: 10.7 | AV94: 10.85 | AW94: 11 | AX94: 11.15 | AY94: 11.3 | AZ94: 11.45 | BA94: 11.6
B95: 29 | C95: 4.2 | D95: 4.35 | E95: 4.5 | F95: 4.65 | G95: 4.8 | H95: 4.95 | I95: 5.1 | J95: 5.25 | K95: 5.4 | L95: 5.55 | M95: 5.7 | N95: 5.85 | O95: 6 | P95: 6.15 | Q95: 6.3 | R95: 6.45 | S95: 6.6 | T95: 6.75 | U95: 6.9 | V95: 7.05 | W95: 7.2 | X95: 7.35 | Y95: 7.5 | Z95: 7.65 | AA95: 7.8 | AB95: 7.95 | AC95: 8.1 | AD95: 8.25 | AE95: 8.4 | AF95: 8.55 | AG95: 8.7 | AH95: 8.85 | AI95: 9 | AJ95: 9.15 | AK95: 9.3 | AL95: 9.45 | AM95: 9.6 | AN95: 9.75 | AO95: 9.9 | AP95: 10.05 | AQ95: 10.2 | AR95: 10.35 | AS95: 10.5 | AT95: 10.65 | AU95: 10.8 | AV95: 10.95 | AW95: 11.1 | AX95: 11.25 | AY95: 11.4 | AZ95: 11.55 | BA95: 11.7
B96: 30 | C96: 4.3 | D96: 4.45 | E96: 4.6 | F96: 4.75 | G96: 4.9 | H96: 5.05 | I96: 5.2 | J96: 5.35 | K96: 5.5 | L96: 5.65 | M96: 5.8 | N96: 5.95 | O96: 6.1 | P96: 6.25 | Q96: 6.4 | R96: 6.55 | S96: 6.7 | T96: 6.85 | U96: 7 | V96: 7.15 | W96: 7.3 | X96: 7.45 | Y96: 7.6 | Z96: 7.75 | AA96: 7.9 | AB96: 8.05 | AC96: 8.2 | AD96: 8.35 | AE96: 8.5 | AF96: 8.65 | AG96: 8.8 | AH96: 8.95 | AI96: 9.1 | AJ96: 9.25 | AK96: 9.4 | AL96: 9.55 | AM96: 9.7 | AN96: 9.85 | AO96: 10 | AP96: 10.15 | AQ96: 10.3 | AR96: 10.45 | AS96: 10.6 | AT96: 10.75 | AU96: 10.9 | AV96: 11.05 | AW96: =1+$B96*0.1+0.3+AW$11*0.15 -> 11.2 | AX96: 11.35 | AY96: 11.5 | AZ96: 11.65 | BA96: 11.8
B97: 31 | C97: 4.4 | D97: 4.55 | E97: 4.7 | F97: 4.85 | G97: 5 | H97: 5.15 | I97: 5.3 | J97: 5.45 | K97: 5.6 | L97: 5.75 | M97: 5.9 | N97: 6.05 | O97: 6.2 | P97: 6.35 | Q97: 6.5 | R97: 6.65 | S97: 6.8 | T97: 6.95 | U97: 7.1 | V97: 7.25 | W97: 7.4 | X97: 7.55 | Y97: 7.7 | Z97: 7.85 | AA97: 8 | AB97: 8.15 | AC97: 8.3 | AD97: 8.45 | AE97: 8.6 | AF97: 8.75 | AG97: 8.9 | AH97: 9.05 | AI97: 9.2 | AJ97: 9.35 | AK97: 9.5 | AL97: 9.65 | AM97: 9.8 | AN97: 9.95 | AO97: 10.1 | AP97: 10.25 | AQ97: 10.4 | AR97: 10.55 | AS97: 10.7 | AT97: 10.85 | AU97: 11 | AV97: 11.15 | AW97: 11.3 | AX97: 11.45 | AY97: 11.6 | AZ97: 11.75 | BA97: 11.9
B98: 32 | C98: =1+$B98*0.1+0.3+C$11*0.15 -> 4.5 | D98: 4.65 | E98: 4.8 | F98: 4.95 | G98: 5.1 | H98: 5.25 | I98: 5.4 | J98: 5.55 | K98: 5.7 | L98: 5.85 | M98: 6 | N98: 6.15 | O98: 6.3 | P98: 6.45 | Q98: 6.6 | R98: 6.75 | S98: 6.9 | T98: 7.05 | U98: 7.2 | V98: 7.35 | W98: 7.5 | X98: 7.65 | Y98: 7.8 | Z98: 7.95 | AA98: 8.1 | AB98: 8.25 | AC98: 8.4 | AD98: 8.55 | AE98: 8.7 | AF98: 8.85 | AG98: 9 | AH98: 9.15 | AI98: 9.3 | AJ98: 9.45 | AK98: 9.6 | AL98: 9.75 | AM98: 9.9 | AN98: 10.05 | AO98: 10.2 | AP98: 10.35 | AQ98: 10.5 | AR98: 10.65 | AS98: 10.8 | AT98: 10.95 | AU98: 11.1 | AV98: 11.25 | AW98: 11.4 | AX98: 11.55 | AY98: 11.7 | AZ98: 11.85 | BA98: 12
B99: 33 | C99: 4.6 | D99: 4.75 | E99: 4.9 | F99: 5.05 | G99: 5.2 | H99: 5.35 | I99: 5.5 | J99: 5.65 | K99: 5.8 | L99: 5.95 | M99: 6.1 | N99: 6.25 | O99: 6.4 | P99: 6.55 | Q99: 6.7 | R99: 6.85 | S99: 7 | T99: 7.15 | U99: 7.3 | V99: 7.45 | W99: 7.6 | X99: 7.75 | Y99: 7.9 | Z99: 8.05 | AA99: 8.2 | AB99: 8.35 | AC99: 8.5 | AD99: 8.65 | AE99: 8.8 | AF99: 8.95 | AG99: 9.1 | AH99: 9.25 | AI99: 9.4 | AJ99: 9.55 | AK99: 9.7 | AL99: 9.85 | AM99: 10 | AN99: 10.15 | AO99: 10.3 | AP99: 10.45 | AQ99: 10.6 | AR99: 10.75 | AS99: 10.9 | AT99: 11.05 | AU99: 11.2 | AV99: 11.35 | AW99: 11.5 | AX99: 11.65 | AY99: 11.8 | AZ99: 11.95 | BA99: 12.1
B100: 34 | C100: 4.7 | D100: 4.85 | E100: 5 | F100: 5.15 | G100: 5.3 | H100: 5.45 | I100: 5.6 | J100: 5.75 | K100: 5.9 | L100: 6.05 | M100: 6.2 | N100: 6.35 | O100: 6.5 | P100: 6.65 | Q100: 6.8 | R100: 6.95 | S100: 7.1 | T100: 7.25 | U100: 7.4 | V100: 7.55 | W100: 7.7 | X100: 7.85 | Y100: 8 | Z100: 8.15 | AA100: 8.3 | AB100: 8.45 | AC100: 8.6 | AD100: 8.75 | AE100: 8.9 | AF100: 9.05 | AG100: 9.2 | AH100: 9.35 | AI100: 9.5 | AJ100: 9.65 | AK100: 9.8 | AL100: 9.95 | AM100: 10.1 | AN100: 10.25 | AO100: 10.4 | AP100: 10.55 | AQ100: 10.7 | AR100: 10.85 | AS100: 11 | AT100: 11.15 | AU100: 11.3 | AV100: 11.45 | AW100: 11.6 | AX100: 11.75 | AY100: 11.9 | AZ100: 12.05 | BA100: 12.2
B101: 35 | C101: 4.8 | D101: 4.95 | E101: 5.1 | F101: 5.25 | G101: 5.4 | H101: 5.55 | I101: 5.7 | J101: 5.85 | K101: 6 | L101: 6.15 | M101: 6.3 | N101: 6.45 | O101: 6.6 | P101: 6.75 | Q101: 6.9 | R101: 7.05 | S101: 7.2 | T101: 7.35 | U101: 7.5 | V101: 7.65 | W101: 7.8 | X101: 7.95 | Y101: 8.1 | Z101: 8.25 | AA101: 8.4 | AB101: 8.55 | AC101: 8.7 | AD101: 8.85 | AE101: 9 | AF101: 9.15 | AG101: 9.3 | AH101: 9.45 | AI101: 9.6 | AJ101: 9.75 | AK101: 9.9 | AL101: 10.05 | AM101: 10.2 | AN101: 10.35 | AO101: 10.5 | AP101: 10.65 | AQ101: 10.8 | AR101: 10.95 | AS101: 11.1 | AT101: 11.25 | AU101: 11.4 | AV101: 11.55 | AW101: 11.7 | AX101: 11.85 | AY101: 12 | AZ101: 12.15 | BA101: 12.3
B102: 36 | C102: 4.9 | D102: =1+$B102*0.1+0.3+D$11*0.15 -> 5.05 | E102: 5.2 | F102: 5.35 | G102: 5.5 | H102: 5.65 | I102: 5.8 | J102: 5.95 | K102: 6.1 | L102: 6.25 | M102: 6.4 | N102: 6.55 | O102: 6.7 | P102: 6.85 | Q102: 7 | R102: 7.15 | S102: 7.3 | T102: 7.45 | U102: 7.6 | V102: 7.75 | W102: 7.9 | X102: 8.05 | Y102: 8.2 | Z102: 8.35 | AA102: 8.5 | AB102: 8.65 | AC102: 8.8 | AD102: 8.95 | AE102: 9.1 | AF102: 9.25 | AG102: 9.4 | AH102: 9.55 | AI102: 9.7 | AJ102: 9.85 | AK102: 10 | AL102: 10.15 | AM102: 10.3 | AN102: 10.45 | AO102: 10.6 | AP102: 10.75 | AQ102: 10.9 | AR102: 11.05 | AS102: 11.2 | AT102: 11.35 | AU102: 11.5 | AV102: 11.65 | AW102: 11.8 | AX102: 11.95 | AY102: 12.1 | AZ102: 12.25 | BA102: 12.4
B103: 37 | C103: 5 | D103: 5.15 | E103: 5.3 | F103: 5.45 | G103: 5.6 | H103: 5.75 | I103: 5.9 | J103: 6.05 | K103: 6.2 | L103: 6.35 | M103: 6.5 | N103: 6.65 | O103: 6.8 | P103: 6.95 | Q103: 7.1 | R103: 7.25 | S103: 7.4 | T103: 7.55 | U103: 7.7 | V103: 7.85 | W103: 8 | X103: 8.15 | Y103: 8.3 | Z103: 8.45 | AA103: 8.6 | AB103: 8.75 | AC103: 8.9 | AD103: 9.05 | AE103: 9.2 | AF103: 9.35 | AG103: 9.5 | AH103: 9.65 | AI103: 9.8 | AJ103: 9.95 | AK103: 10.1 | AL103: 10.25 | AM103: 10.4 | AN103: 10.55 | AO103: 10.7 | AP103: 10.85 | AQ103: 11 | AR103: 11.15 | AS103: 11.3 | AT103: 11.45 | AU103: 11.6 | AV103: 11.75 | AW103: 11.9 | AX103: 12.05 | AY103: 12.2 | AZ103: 12.35 | BA103: 12.5
B104: 38 | C104: 5.1 | D104: 5.25 | E104: 5.4 | F104: 5.55 | G104: 5.7 | H104: 5.85 | I104: 6 | J104: 6.15 | K104: 6.3 | L104: 6.45 | M104: 6.6 | N104: 6.75 | O104: 6.9 | P104: 7.05 | Q104: 7.2 | R104: 7.35 | S104: 7.5 | T104: 7.65 | U104: 7.8 | V104: 7.95 | W104: 8.1 | X104: 8.25 | Y104: 8.4 | Z104: 8.55 | AA104: 8.7 | AB104: 8.85 | AC104: 9 | AD104: 9.15 | AE104: 9.3 | AF104: 9.45 | AG104: 9.6 | AH104: 9.75 | AI104: 9.9 | AJ104: 10.05 | AK104: 10.2 | AL104: 10.35 | AM104: 10.5 | AN104: 10.65 | AO104: 10.8 | AP104: 10.95 | AQ104: 11.1 | AR104: 11.25 | AS104: 11.4 | AT104: 11.55 | AU104: 11.7 | AV104: 11.85 | AW104: 12 | AX104: 12.15 | AY104: 12.3 | AZ104: 12.45 | BA104: 12.6
B105: 39 | C105: 5.2 | D105: 5.35 | E105: 5.5 | F105: 5.65 | G105: 5.8 | H105: 5.95 | I105: 6.1 | J105: 6.25 | K105: 6.4 | L105: 6.55 | M105: 6.7 | N105: 6.85 | O105: 7 | P105: 7.15 | Q105: 7.3 | R105: 7.45 | S105: 7.6 | T105: 7.75 | U105: 7.9 | V105: 8.05 | W105: 8.2 | X105: 8.35 | Y105: 8.5 | Z105: 8.65 | AA105: 8.8 | AB105: 8.95 | AC105: 9.1 | AD105: 9.25 | AE105: 9.4 | AF105: 9.55 | AG105: 9.7 | AH105: 9.85 | AI105: 10 | AJ105: 10.15 | AK105: 10.3 | AL105: 10.45 | AM105: 10.6 | AN105: 10.75 | AO105: 10.9 | AP105: 11.05 | AQ105: 11.2 | AR105: 11.35 | AS105: 11.5 | AT105: 11.65 | AU105: 11.8 | AV105: 11.95 | AW105: 12.1 | AX105: 12.25 | AY105: 12.4 | AZ105: 12.55 | BA105: 12.7
B106: 40 | C106: 5.3 | D106: 5.45 | E106: 5.6 | F106: 5.75 | G106: 5.9 | H106: 6.05 | I106: 6.2 | J106: 6.35 | K106: 6.5 | L106: 6.65 | M106: 6.8 | N106: 6.95 | O106: 7.1 | P106: 7.25 | Q106: 7.4 | R106: 7.55 | S106: 7.7 | T106: 7.85 | U106: 8 | V106: 8.15 | W106: 8.3 | X106: 8.45 | Y106: 8.6 | Z106: 8.75 | AA106: 8.9 | AB106: 9.05 | AC106: 9.2 | AD106: 9.35 | AE106: 9.5 | AF106: 9.65 | AG106: 9.8 | AH106: 9.95 | AI106: 10.1 | AJ106: 10.25 | AK106: 10.4 | AL106: 10.55 | AM106: 10.7 | AN106: 10.85 | AO106: 11 | AP106: 11.15 | AQ106: 11.3 | AR106: 11.45 | AS106: 11.6 | AT106: 11.75 | AU106: 11.9 | AV106: 12.05 | AW106: 12.2 | AX106: 12.35 | AY106: 12.5 | AZ106: 12.65 | BA106: 12.8
B107: 41 | C107: 5.4 | D107: 5.55 | E107: 5.7 | F107: 5.85 | G107: 6 | H107: 6.15 | I107: =1+$B107*0.1+0.3+I$11*0.15 -> 6.3 | J107: 6.45 | K107: 6.6 | L107: 6.75 | M107: 6.9 | N107: 7.05 | O107: 7.2 | P107: 7.35 | Q107: 7.5 | R107: 7.65 | S107: 7.8 | T107: 7.95 | U107: 8.1 | V107: 8.25 | W107: 8.4 | X107: 8.55 | Y107: 8.7 | Z107: 8.85 | AA107: 9 | AB107: 9.15 | AC107: 9.3 | AD107: 9.45 | AE107: 9.6 | AF107: 9.75 | AG107: 9.9 | AH107: 10.05 | AI107: 10.2 | AJ107: 10.35 | AK107: 10.5 | AL107: 10.65 | AM107: 10.8 | AN107: 10.95 | AO107: 11.1 | AP107: 11.25 | AQ107: 11.4 | AR107: 11.55 | AS107: 11.7 | AT107: 11.85 | AU107: 12 | AV107: 12.15 | AW107: 12.3 | AX107: 12.45 | AY107: 12.6 | AZ107: 12.75 | BA107: 12.9
B108: 42 | C108: 5.5 | D108: 5.65 | E108: 5.8 | F108: 5.95 | G108: 6.1 | H108: 6.25 | I108: 6.4 | J108: 6.55 | K108: 6.7 | L108: 6.85 | M108: 7 | N108: 7.15 | O108: 7.3 | P108: 7.45 | Q108: 7.6 | R108: 7.75 | S108: 7.9 | T108: 8.05 | U108: 8.2 | V108: 8.35 | W108: 8.5 | X108: 8.65 | Y108: 8.8 | Z108: 8.95 | AA108: 9.1 | AB108: 9.25 | AC108: 9.4 | AD108: 9.55 | AE108: 9.7 | AF108: 9.85 | AG108: 10 | AH108: 10.15 | AI108: 10.3 | AJ108: 10.45 | AK108: 10.6 | AL108: 10.75 | AM108: 10.9 | AN108: 11.05 | AO108: 11.2 | AP108: 11.35 | AQ108: 11.5 | AR108: 11.65 | AS108: 11.8 | AT108: 11.95 | AU108: 12.1 | AV108: 12.25 | AW108: 12.4 | AX108: 12.55 | AY108: 12.7 | AZ108: 12.85 | BA108: 13
B109: 43 | C109: 5.6 | D109: 5.75 | E109: 5.9 | F109: 6.05 | G109: 6.2 | H109: 6.35 | I109: 6.5 | J109: 6.65 | K109: 6.8 | L109: 6.95 | M109: 7.1 | N109: 7.25 | O109: 7.4 | P109: 7.55 | Q109: 7.7 | R109: 7.85 | S109: 8 | T109: 8.15 | U109: 8.3 | V109: 8.45 | W109: 8.6 | X109: 8.75 | Y109: 8.9 | Z109: 9.05 | AA109: 9.2 | AB109: 9.35 | AC109: 9.5 | AD109: 9.65 | AE109: 9.8 | AF109: 9.95 | AG109: 10.1 | AH109: 10.25 | AI109: 10.4 | AJ109: 10.55 | AK109: 10.7 | AL109: 10.85 | AM109: 11 | AN109: 11.15 | AO109: 11.3 | AP109: 11.45 | AQ109: 11.6 | AR109: 11.75 | AS109: 11.9 | AT109: 12.05 | AU109: 12.2 | AV109: 12.35 | AW109: 12.5 | AX109: 12.65 | AY109: 12.8 | AZ109: 12.95 | BA109: 13.1
B110: 44 | C110: 5.7 | D110: 5.85 | E110: 6 | F110: 6.15 | G110: 6.3 | H110: 6.45 | I110: 6.6 | J110: 6.75 | K110: 6.9 | L110: 7.05 | M110: 7.2 | N110: 7.35 | O110: 7.5 | P110: 7.65 | Q110: 7.8 | R110: 7.95 | S110: 8.1 | T110: 8.25 | U110: 8.4 | V110: 8.55 | W110: 8.7 | X110: 8.85 | Y110: 9 | Z110: 9.15 | AA110: 9.3 | AB110: 9.45 | AC110: 9.6 | AD110: 9.75 | AE110: 9.9 | AF110: 10.05 | AG110: 10.2 | AH110: 10.35 | AI110: 10.5 | AJ110: 10.65 | AK110: 10.8 | AL110: 10.95 | AM110: 11.1 | AN110: 11.25 | AO110: 11.4 | AP110: 11.55 | AQ110: 11.7 | AR110: 11.85 | AS110: 12 | AT110: 12.15 | AU110: 12.3 | AV110: 12.45 | AW110: 12.6 | AX110: 12.75 | AY110: 12.9 | AZ110: 13.05 | BA110: 13.2
B111: 45 | C111: 5.8 | D111: 5.95 | E111: 6.1 | F111: 6.25 | G111: 6.4 | H111: 6.55 | I111: 6.7 | J111: 6.85 | K111: 7 | L111: 7.15 | M111: 7.3 | N111: 7.45 | O111: 7.6 | P111: 7.75 | Q111: 7.9 | R111: 8.05 | S111: 8.2 | T111: 8.35 | U111: 8.5 | V111: 8.65 | W111: 8.8 | X111: 8.95 | Y111: 9.1 | Z111: 9.25 | AA111: 9.4 | AB111: 9.55 | AC111: 9.7 | AD111: 9.85 | AE111: 10 | AF111: 10.15 | AG111: 10.3 | AH111: 10.45 | AI111: 10.6 | AJ111: 10.75 | AK111: 10.9 | AL111: 11.05 | AM111: 11.2 | AN111: 11.35 | AO111: 11.5 | AP111: 11.65 | AQ111: 11.8 | AR111: 11.95 | AS111: 12.1 | AT111: 12.25 | AU111: 12.4 | AV111: 12.55 | AW111: 12.7 | AX111: 12.85 | AY111: 13 | AZ111: 13.15 | BA111: 13.3
B112: 46 | C112: 5.9 | D112: 6.05 | E112: 6.2 | F112: 6.35 | G112: 6.5 | H112: 6.65 | I112: 6.8 | J112: 6.95 | K112: 7.1 | L112: 7.25 | M112: 7.4 | N112: =1+$B112*0.1+0.3+N$11*0.15 -> 7.55 | O112: 7.7 | P112: 7.85 | Q112: 8 | R112: 8.15 | S112: 8.3 | T112: 8.45 | U112: 8.6 | V112: 8.75 | W112: 8.9 | X112: 9.05 | Y112: 9.2 | Z112: 9.35 | AA112: 9.5 | AB112: 9.65 | AC112: 9.8 | AD112: 9.95 | AE112: 10.1 | AF112: 10.25 | AG112: 10.4 | AH112: 10.55 | AI112: 10.7 | AJ112: 10.85 | AK112: 11 | AL112: 11.15 | AM112: 11.3 | AN112: 11.45 | AO112: 11.6 | AP112: 11.75 | AQ112: 11.9 | AR112: 12.05 | AS112: 12.2 | AT112: 12.35 | AU112: 12.5 | AV112: 12.65 | AW112: 12.8 | AX112: 12.95 | AY112: 13.1 | AZ112: 13.25 | BA112: 13.4
B113: 47 | C113: 6 | D113: 6.15 | E113: 6.3 | F113: 6.45 | G113: 6.6 | H113: 6.75 | I113: 6.9 | J113: 7.05 | K113: 7.2 | L113: 7.35 | M113: 7.5 | N113: 7.65 | O113: 7.8 | P113: 7.95 | Q113: 8.1 | R113: 8.25 | S113: 8.4 | T113: 8.55 | U113: 8.7 | V113: 8.85 | W113: 9 | X113: 9.15 | Y113: 9.3 | Z113: 9.45 | AA113: 9.6 | AB113: 9.75 | AC113: 9.9 | AD113: 10.05 | AE113: 10.2 | AF113: 10.35 | AG113: 10.5 | AH113: 10.65 | AI113: 10.8 | AJ113: 10.95 | AK113: 11.1 | AL113: 11.25 | AM113: 11.4 | AN113: 11.55 | AO113: 11.7 | AP113: 11.85 | AQ113: 12 | AR113: 12.15 | AS113: 12.3 | AT113: 12.45 | AU113: 12.6 | AV113: 12.75 | AW113: 12.9 | AX113: 13.05 | AY113: 13.2 | AZ113: 13.35 | BA113: 13.5
B114: 48 | C114: 6.1 | D114: 6.25 | E114: 6.4 | F114: 6.55 | G114: 6.7 | H114: 6.85 | I114: 7 | J114: 7.15 | K114: 7.3 | L114: 7.45 | M114: 7.6 | N114: 7.75 | O114: 7.9 | P114: 8.05 | Q114: 8.2 | R114: 8.35 | S114: 8.5 | T114: 8.65 | U114: 8.8 | V114: 8.95 | W114: 9.1 | X114: 9.25 | Y114: 9.4 | Z114: 9.55 | AA114: 9.7 | AB114: 9.85 | AC114: 10 | AD114: 10.15 | AE114: 10.3 | AF114: 10.45 | AG114: 10.6 | AH114: 10.75 | AI114: 10.9 | AJ114: 11.05 | AK114: 11.2 | AL114: 11.35 | AM114: 11.5 | AN114: 11.65 | AO114: 11.8 | AP114: 11.95 | AQ114: 12.1 | AR114: 12.25 | AS114: 12.4 | AT114: 12.55 | AU114: 12.7 | AV114: 12.85 | AW114: 13 | AX114: 13.15 | AY114: 13.3 | AZ114: 13.45 | BA114: 13.6
B115: 49 | C115: 6.2 | D115: 6.35 | E115: 6.5 | F115: 6.65 | G115: 6.8 | H115: 6.95 | I115: 7.1 | J115: 7.25 | K115: 7.4 | L115: 7.55 | M115: 7.7 | N115: 7.85 | O115: 8 | P115: 8.15 | Q115: 8.3 | R115: 8.45 | S115: 8.6 | T115: 8.75 | U115: 8.9 | V115: 9.05 | W115: 9.2 | X115: 9.35 | Y115: 9.5 | Z115: 9.65 | AA115: 9.8 | AB115: 9.95 | AC115: 10.1 | AD115: 10.25 | AE115: 10.4 | AF115: 10.55 | AG115: 10.7 | AH115: 10.85 | AI115: 11 | AJ115: 11.15 | AK115: 11.3 | AL115: 11.45 | AM115: 11.6 | AN115: 11.75 | AO115: 11.9 | AP115: 12.05 | AQ115: 12.2 | AR115: 12.35 | AS115: 12.5 | AT115: 12.65 | AU115: 12.8 | AV115: 12.95 | AW115: 13.1 | AX115: 13.25 | AY115: 13.4 | AZ115: 13.55 | BA115: 13.7
B116: 50 | C116: 6.3 | D116: 6.45 | E116: 6.6 | F116: 6.75 | G116: 6.9 | H116: 7.05 | I116: 7.2 | J116: 7.35 | K116: 7.5 | L116: 7.65 | M116: 7.8 | N116: 7.95 | O116: 8.1 | P116: 8.25 | Q116: 8.4 | R116: 8.55 | S116: 8.7 | T116: 8.85 | U116: 9 | V116: 9.15 | W116: 9.3 | X116: 9.45 | Y116: 9.6 | Z116: 9.75 | AA116: 9.9 | AB116: 10.05 | AC116: 10.2 | AD116: 10.35 | AE116: 10.5 | AF116: 10.65 | AG116: 10.8 | AH116: 10.95 | AI116: 11.1 | AJ116: 11.25 | AK116: 11.4 | AL116: 11.55 | AM116: 11.7 | AN116: 11.85 | AO116: 12 | AP116: 12.15 | AQ116: 12.3 | AR116: 12.45 | AS116: 12.6 | AT116: 12.75 | AU116: 12.9 | AV116: 13.05 | AW116: 13.2 | AX116: 13.35 | AY116: 13.5 | AZ116: 13.65 | BA116: 13.8

Sheet Révisions
B1: sonde et XP :
B2: Version | C2: Date | D2: Release note
B3: 1.00 | C3: 2013-01-19 | D3: Création (amélioration/automatisation d'un fichier d'ilidan), pour le "très vieux" que j'avais fait autrefois je ne le retrouve plus^^
B4: 1.01 | C4: 2013-01-22 | D4: Modifications de certaines formules pour éliminer des fonctions non compatibles avec certaines versions d'excel.
B5: 1.02 | C5: 2013-02-09 | D5: - Suppression de "ARRONDI.AU.MULTIPLE" pour des raisons de compatibilité inter-version d'excel. - Correction du nombre de point de vie de base des Tanks. - Prise en compte de la possibilité que la sonde n'ai pas tué que des JSN. - Suppression des unités ennemies tuées lors de la sonde. - Possibilité de corriger le nombre d'unité (pour tenir compte des pontes depuis le RC par exemple). - Ajout de mises en forme conditionnelles (alerte en rouge si nombre de JSN ou FdF insuffisants). - Ajout des feuilles "Manuel", "Multiplicateurs de vie" et "Révisions".
B7: armée :
B8: 2.0 | C8: 2013-11-20 | D8: calcul automatisé du % pour la ponte en fonction de l'armée actuelle, afin d'éviter de faire des calculs Mise en place et modification TDP VA VC nombre d'ouvrière Modification du texte par copie/colle pour transmission par mp, rendu plus lisible

Sheet Data
B4: Type d'unité | C4: Att | D4: Def | E4: Vie | F4: Nom 1 | G4: Nom 2
B5: Jeune Soldate Naine | C5: 3 | D5: 2 | E5: 8 | F5: Jeune Soldate Naine | G5: Jeunes Soldates Naines
B6: Soldate Naine | C6: 5 | D6: 4 | E6: 10 | F6: Soldate Naine | G6: Soldates Naines
B7: Naine d'Elite | C7: 7 | D7: 6 | E7: 13 | F7: Naine d'Elite | G7: Naines d'Elites
B8: Jeune Soldate | C8: 10 | D8: 9 | E8: 16 | F8: Jeune Soldate | G8: Jeunes Soldates
B9: Soldate | C9: 15 | D9: 14 | E9: 20 | F9: Soldate | G9: Soldates
B10: Concierge | C10: 1 | D10: 25 | E10: 30 | F10: Concierge | G10: Concierges
B11: Concierge d'élite | C11: 1 | D11: 35 | E11: 40 | F11: Concierge d'élite | G11: Concierges d'élites
B12: Artilleuse | C12: 30 | D12: 15 | E12: 10 | F12: Artilleuse | G12: Artilleuses
B13: Artilleuse d'élite | C13: 35 | D13: 18 | E13: 12 | F13: Artilleuse d'élite | G13: Artilleuses d'élites
B14: Soldate d'élite | C14: 24 | D14: 23 | E14: 27 | F14: Soldate d'élite | G14: Soldates d'élites
B15: Tank | C15: 55 | D15: 1 | E15: 35 | F15: Tank | G15: Tanks
B16: Tank d'élite | C16: 80 | D16: 1 | E16: 50 | F16: Tank d'élite | G16: Tanks d'élites
B17: Tueuse | C17: 50 | D17: 50 | E17: 50 | F17: Tueuse | G17: Tueuses
B18: Tueuse d'élite | C18: 55 | D18: 55 | E18: 55 | F18: Tueuse d'élite | G18: Tueuses d'élites
